{"text_format":"1","workbook":"xlsx","n_sheets":5,"sheets":["Stamdata","labels","Enumerations","Pre-validation","XBRL Errors"],"not_rendered":{"charts":0,"images":0,"macros":1,"external_links":0,"defined_names":17,"comments":0,"pivot_tables":0},"unopened":[],"bounds":{"document_bytes":16777216,"sheet_cells":100000,"rows_first":2000,"rows_last":500,"rows_between":2000,"halvings":0,"cell_chars":16384,"cell_head_chars":4096},"cells_cut":0,"cells_raw":0,"read":"whole","date_system":"1900"}

{"sheet":"Stamdata","index":0,"n_rows":131,"n_cols":32,"rows_kept":131,"cut":false,"hidden":false,"merged":[[22,3,22,5],[23,3,23,5],[24,3,24,5],[25,3,25,5],[26,3,26,5],[27,3,27,5],[28,3,28,5],[34,3,34,5],[35,3,35,5],[36,3,36,5],[37,3,37,5],[38,3,38,5],[39,3,39,5],[40,3,40,5],[41,3,41,5],[42,3,42,5],[43,3,43,5],[44,3,44,5],[45,3,45,5],[46,3,46,5],[47,3,47,5],[53,3,53,5],[54,3,54,5],[55,3,55,5],[56,3,56,5],[57,3,57,5],[58,3,58,5],[59,3,59,5],[60,3,60,5],[61,3,61,5],[62,3,62,5],[63,3,63,5],[64,3,64,5],[65,3,65,5],[66,3,66,5],[67,3,67,5],[68,3,68,5],[69,3,69,5],[70,3,70,5],[71,3,71,5],[105,3,105,5],[111,3,111,5],[112,3,112,5],[113,3,113,5],[114,3,114,5]]}
["",null,null,{"$f":"IF(D62=\"Fiscaal\",\"Fiscal\",\"Commercial\")","v":"Commercial"}]
["","Conversion info"]
["",null,null,null,null,null,null,null,null,null,null,null,null,null,null,null,null,null,null,null,null,null,null,null,null,"/General data label {2}","/General data value {4}"]
["","",null,"NL NT 18.0"]
["","",null,"EN"]
["","entrypoint",null,"KvK: Jaarverantwoording 2023 NLGAAP - micro rechtspersonen - publicatiestukken"]
["","identifier scheme",null,"http://www.kvk.nl/kvk-id"]
["","",null,0]
["","",null,0]
["","",null,"INF"]
["","",null,"INF"]
["","",null,"FALSE"]
["","",null,"TRUE"]
["",null,null,null,null,null,null,null,null,null,null,null,null,null,null,null,null,null,null,null,null,null,null,null,null,"//General data label {2}","//General data value {4}"]
[""]
[""]
[""]
["",{"$f":"INDEX(labels!A2:C2,1,MATCH(PP_Language,labels!A1:C1,0))","v":"Document and entity information"}]
["",{"$f":"INDEX(labels!A3:C3,1,MATCH(PP_Language,labels!A1:C1,0))","v":"Entity information"}]
["",{"$f":"INDEX(labels!A3:C3,1,MATCH(PP_Language,labels!A1:C1,0))","v":"Entity information"}]
[""]
[""]
["",{"$f":"INDEX(labels!A4:C4,1,MATCH(PP_Language,labels!A1:C1,0))","v":"Name of the legal entity"},"",null,null,null,null,null,null,null,null,null,null,null,null,null,null,null,null,null,null,null,null,null,null,{"$f":"\"/entity-information label {\"&COLUMN(B21)&\"}\"","v":"/entity-information label {2}"},null,{"$f":"\"/entity-information   {\"&COLUMN(D21)&\"}\"","v":"/entity-information   {4}"}]
["",{"$f":"INDEX(labels!A5:C5,1,MATCH(PP_Language,labels!A1:C1,0))","v":"Legal form of the legal entity"},""]
["",{"$f":"INDEX(labels!A6:C6,1,MATCH(PP_Language,labels!A1:C1,0))","v":"Registered office of the legal entity"},""]
["",{"$f":"INDEX(labels!A7:C7,1,MATCH(PP_Language,labels!A1:C1,0))","v":"Registration number at the Chamber of Commerce"},""]
["",{"$f":"INDEX(labels!A8:C8,1,MATCH(PP_Language,labels!A1:C1,0))","v":"Business names"},""]
["",{"$f":"INDEX(labels!A9:C9,1,MATCH(PP_Language,labels!A1:C1,0))","v":"Classification of the legal entity based on the legal size criteria"},""]
["",{"$f":"INDEX(labels!A10:C10,1,MATCH(PP_Language,labels!A1:C1,0))","v":"SBI-code"},""]
[""]
["",null,null,null,null,null,null,null,null,null,null,null,null,null,null,null,null,null,null,null,null,null,null,null,null,{"$f":"\"//entity-information label {\"&COLUMN(B29)&\"}\"","v":"//entity-information label {2}"},null,{"$f":"\"//entity-information   {\"&COLUMN(D29)&\"}\"","v":"//entity-information   {4}"}]
["",{"$f":"INDEX(labels!A11:C11,1,MATCH(PP_Language,labels!A1:C1,0))","v":"Address of the legal entity"}]
[""]
[""]
["",{"$f":"INDEX(labels!A12:C12,1,MATCH(PP_Language,labels!A1:C1,0))","v":"Description of location NL"},"",null,null,null,null,null,null,null,null,null,null,null,null,null,null,null,null,null,null,null,null,null,null,{"$f":"\"/entity-address label {\"&COLUMN(B33)&\"}\"","v":"/entity-address label {2}"},null,{"$f":"\"/entity-address   {\"&COLUMN(D33)&\"}\"","v":"/entity-address   {4}"}]
["",{"$f":"INDEX(labels!A13:C13,1,MATCH(PP_Language,labels!A1:C1,0))","v":"Street name NL"},""]
["",{"$f":"INDEX(labels!A14:C14,1,MATCH(PP_Language,labels!A1:C1,0))","v":"House number NL"},""]
["",{"$f":"INDEX(labels!A15:C15,1,MATCH(PP_Language,labels!A1:C1,0))","v":"House number addition"},""]
["",{"$f":"INDEX(labels!A16:C16,1,MATCH(PP_Language,labels!A1:C1,0))","v":"PO box number"},""]
["",{"$f":"INDEX(labels!A17:C17,1,MATCH(PP_Language,labels!A1:C1,0))","v":"Postal code NL"},""]
["",{"$f":"INDEX(labels!A18:C18,1,MATCH(PP_Language,labels!A1:C1,0))","v":"Place of residence NL"},""]
["",{"$f":"INDEX(labels!A19:C19,1,MATCH(PP_Language,labels!A1:C1,0))","v":"Description of location abroad"},""]
["",{"$f":"INDEX(labels!A20:C20,1,MATCH(PP_Language,labels!A1:C1,0))","v":"Street name abroad"},""]
["",{"$f":"INDEX(labels!A21:C21,1,MATCH(PP_Language,labels!A1:C1,0))","v":"House number abroad"},""]
["",{"$f":"INDEX(labels!A22:C22,1,MATCH(PP_Language,labels!A1:C1,0))","v":"Postal code abroad"},""]
["",{"$f":"INDEX(labels!A23:C23,1,MATCH(PP_Language,labels!A1:C1,0))","v":"Place of residence abroad"},""]
["",{"$f":"INDEX(labels!A24:C24,1,MATCH(PP_Language,labels!A1:C1,0))","v":"Name region"},""]
["",{"$f":"INDEX(labels!A25:C25,1,MATCH(PP_Language,labels!A1:C1,0))","v":"Country name, ISO"},""]
[""]
["",null,null,null,null,null,null,null,null,null,null,null,null,null,null,null,null,null,null,null,null,null,null,null,null,{"$f":"\"//entity-address label {\"&COLUMN(B48)&\"}\"","v":"//entity-address label {2}"},null,{"$f":"\"//entity-address   {\"&COLUMN(D48)&\"}\"","v":"//entity-address   {4}"}]
["",{"$f":"INDEX(labels!A26:C26,1,MATCH(PP_Language,labels!A1:C1,0))","v":"Document information"}]
[""]
[""]
["",{"$f":"INDEX(labels!A27:C27,1,MATCH(PP_Language,labels!A1:C1,0))","v":"Title of the document"},"",null,null,null,null,null,null,null,null,null,null,null,null,null,null,null,null,null,null,null,null,null,null,{"$f":"\"/document-information label {\"&COLUMN(B52)&\"}\"","v":"/document-information label {2}"},null,{"$f":"\"/document-information   {\"&COLUMN(D52)&\"}\"","v":"/document-information   {4}"}]
["",{"$f":"INDEX(labels!A28:C28,1,MATCH(PP_Language,labels!A1:C1,0))","v":"Start date of the period concerning the financial statement"},""]
["",{"$f":"INDEX(labels!A29:C29,1,MATCH(PP_Language,labels!A1:C1,0))","v":"End date of the period concerning the financial statement"},""]
["",{"$f":"INDEX(labels!A30:C30,1,MATCH(PP_Language,labels!A1:C1,0))","v":"Start date of the previous period concerning the financial statement"},""]
["",{"$f":"INDEX(labels!A31:C31,1,MATCH(PP_Language,labels!A1:C1,0))","v":"End date of the previous period concerning the financial statement"},""]
["",{"$f":"INDEX(labels!A32:C32,1,MATCH(PP_Language,labels!A1:C1,0))","v":"Reporting period different than annual (Y/N)"},""]
["",{"$f":"INDEX(labels!A33:C33,1,MATCH(PP_Language,labels!A1:C1,0))","v":"Description of the reason for deviating from an annual reporting period"},""]
["",{"$f":"INDEX(labels!A34:C34,1,MATCH(PP_Language,labels!A1:C1,0))","v":"Description of the impact on comparative figures when deviating from an annual reporting period"},""]
["",{"$f":"INDEX(labels!A35:C35,1,MATCH(PP_Language,labels!A1:C1,0))","v":"Basis of preparation"},""]
["",{"$f":"INDEX(labels!A36:C36,1,MATCH(PP_Language,labels!A1:C1,0))","v":"Presentation currency of the document"},""]
["",{"$f":"INDEX(labels!A37:C37,1,MATCH(PP_Language,labels!A1:C1,0))","v":"Units in which the figures in the financial statements are expressed"},""]
["",{"$f":"INDEX(labels!A38:C38,1,MATCH(PP_Language,labels!A1:C1,0))","v":"Date of preparation of the financial statements"},""]
["",{"$f":"INDEX(labels!A39:C39,1,MATCH(PP_Language,labels!A1:C1,0))","v":"Financial statements adopted (Y/N)"},""]
["",{"$f":"INDEX(labels!A40:C40,1,MATCH(PP_Language,labels!A1:C1,0))","v":"Date of adoption of the financial statements"},""]
["",{"$f":"INDEX(labels!A41:C41,1,MATCH(PP_Language,labels!A1:C1,0))","v":"Resubmission of document due to substantive and insurmountable inaccuracies (Y/N)"},""]
["",{"$f":"INDEX(labels!A42:C42,1,MATCH(PP_Language,labels!A1:C1,0))","v":"Explanation of resubmission of the document due to substantive and insurmountable inaccuracies"},""]
["",{"$f":"INDEX(labels!A43:C43,1,MATCH(PP_Language,labels!A1:C1,0))","v":"Resubmission of the document due to technical and/or process-related inaccuracies (Y/N)"},""]
["",{"$f":"INDEX(labels!A44:C44,1,MATCH(PP_Language,labels!A1:C1,0))","v":"Explanation of resubmission of document due to technical and/or process-related inaccuracies"},""]
["",{"$f":"INDEX(labels!A45:C45,1,MATCH(PP_Language,labels!A1:C1,0))","v":"Email address"},""]
[""]
["",null,null,null,null,null,null,null,null,null,null,null,null,null,null,null,null,null,null,null,null,null,null,null,null,{"$f":"\"//document-information label {\"&COLUMN(B72)&\"}\"","v":"//document-information label {2}"},null,{"$f":"\"//document-information   {\"&COLUMN(D72)&\"}\"","v":"//document-information   {4}"}]
["",{"$f":"INDEX(labels!A46:C46,1,MATCH(PP_Language,labels!A1:C1,0))","v":"Company financial statements"}]
["",{"$f":"INDEX(labels!A47:C47,1,MATCH(PP_Language,labels!A1:C1,0))","v":"Balance sheet"}]
["",{"$f":"INDEX(labels!A47:C47,1,MATCH(PP_Language,labels!A1:C1,0))","v":"Balance sheet"}]
["",null,null,{"$f":"INDEX(labels!A48:C48,1,MATCH(PP_Language,labels!A1:C1,0))","v":"Current"},null,{"$f":"INDEX(labels!A50:C50,1,MATCH(PP_Language,labels!A1:C1,0))","v":"Previous"}]
[""]
["",{"$f":"INDEX(labels!A51:C51,1,MATCH(PP_Language,labels!A1:C1,0))","v":"Balance sheet before or after appropriation of results"},"",null,null,null,null,null,null,null,null,null,null,null,null,null,null,null,null,null,null,null,null,null,null,{"$f":"\"/balance-sheet-micro-entities label {\"&COLUMN(B78)&\"}\"","v":"/balance-sheet-micro-entities label {2}"},null,{"$f":"\"/balance-sheet-micro-entities \" & INDEX(labels!A49:C49,1,MATCH(PP_Language,labels!A1:C1,0)) & \" \" & BasisOfPreparationAxis & \" \" & INDEX(labels!A48:C48,1,MATCH(PP_Language,labels!A1:C1,0)) &  \"  {\"&COLUMN(D78)&\"}\"","v":"/balance-sheet-micro-entities Separate Commercial Current  {4}"},null,{"$f":"\"/balance-sheet-micro-entities \" & INDEX(labels!A49:C49,1,MATCH(PP_Language,labels!A1:C1,0)) & \" \" & BasisOfPreparationAxis & \" \" & INDEX(labels!A50:C50,1,MATCH(PP_Language,labels!A1:C1,0)) &  \"  {\"&COLUMN(F78)&\"}\"","v":"/balance-sheet-micro-entities Separate Commercial Previous  {6}"}]
[""]
["",{"$f":"INDEX(labels!A52:C52,1,MATCH(PP_Language,labels!A1:C1,0))","v":"Costs relating to the incorporation and issuance of shares"},"-"]
["",{"$f":"INDEX(labels!A53:C53,1,MATCH(PP_Language,labels!A1:C1,0))","v":"Other non-current assets"},"-"]
["",{"$f":"INDEX(labels!A54:C54,1,MATCH(PP_Language,labels!A1:C1,0))","v":"Total of non-current assets"},"-",{"$f":"IF(OR(NOT(0=0),NOT(AND(Stamdata!D82=\"\",Stamdata!D83=\"\"))), + SUM(Stamdata!D82,Stamdata!D83),\"\")","v":""},null,{"$f":"IF(OR(NOT(0=0),NOT(AND(Stamdata!F82=\"\",Stamdata!F83=\"\"))), + SUM(Stamdata!F82,Stamdata!F83),\"\")","v":""}]
[""]
["",{"$f":"INDEX(labels!A55:C55,1,MATCH(PP_Language,labels!A1:C1,0))","v":"Called-up share capital"},"-"]
["",{"$f":"INDEX(labels!A56:C56,1,MATCH(PP_Language,labels!A1:C1,0))","v":"Other current assets"},"-"]
["",{"$f":"INDEX(labels!A57:C57,1,MATCH(PP_Language,labels!A1:C1,0))","v":"Total of current assets"},"-",{"$f":"IF(OR(NOT(0=0),NOT(AND(Stamdata!D86=\"\",Stamdata!D87=\"\"))), + SUM(Stamdata!D86,Stamdata!D87),\"\")","v":""},null,{"$f":"IF(OR(NOT(0=0),NOT(AND(Stamdata!F86=\"\",Stamdata!F87=\"\"))), + SUM(Stamdata!F86,Stamdata!F87),\"\")","v":""}]
[""]
["",{"$f":"INDEX(labels!A58:C58,1,MATCH(PP_Language,labels!A1:C1,0))","v":"Total of assets"},"-",{"$f":"IF(OR(NOT(0=0),NOT(AND(Stamdata!D84=\"\",Stamdata!D88=\"\"))), + SUM(Stamdata!D84,Stamdata!D88),\"\")","v":""},null,{"$f":"IF(OR(NOT(0=0),NOT(AND(Stamdata!F84=\"\",Stamdata!F88=\"\"))), + SUM(Stamdata!F84,Stamdata!F88),\"\")","v":""}]
[""]
["",{"$f":"INDEX(labels!A59:C59,1,MATCH(PP_Language,labels!A1:C1,0))","v":"Equity"},"+"]
["",{"$f":"INDEX(labels!A60:C60,1,MATCH(PP_Language,labels!A1:C1,0))","v":"Provisions"},"+"]
["",{"$f":"INDEX(labels!A61:C61,1,MATCH(PP_Language,labels!A1:C1,0))","v":"Liabilities with a maturity exceeding one year"},"+"]
["",{"$f":"INDEX(labels!A62:C62,1,MATCH(PP_Language,labels!A1:C1,0))","v":"Liabilities with a maturity of no more than one year"},"+"]
["",{"$f":"INDEX(labels!A63:C63,1,MATCH(PP_Language,labels!A1:C1,0))","v":"Total of liabilities"},"+",{"$f":"IF(OR(NOT(AND(Stamdata!D94=\"\",Stamdata!D95=\"\")),NOT(0=0)), SUM(Stamdata!D94,Stamdata!D95),\"\")","v":""},null,{"$f":"IF(OR(NOT(AND(Stamdata!F94=\"\",Stamdata!F95=\"\")),NOT(0=0)), SUM(Stamdata!F94,Stamdata!F95),\"\")","v":""}]
[""]
["",{"$f":"INDEX(labels!A64:C64,1,MATCH(PP_Language,labels!A1:C1,0))","v":"Total of equity and liabilities"},"+",{"$f":"IF(OR(NOT(AND(Stamdata!D92=\"\",Stamdata!D93=\"\",Stamdata!D96=\"\")),NOT(0=0)), SUM(Stamdata!D92,Stamdata!D93,Stamdata!D96),\"\")","v":""},null,{"$f":"IF(OR(NOT(AND(Stamdata!F92=\"\",Stamdata!F93=\"\",Stamdata!F96=\"\")),NOT(0=0)), SUM(Stamdata!F92,Stamdata!F93,Stamdata!F96),\"\")","v":""}]
[""]
[""]
[""]
["",null,null,null,null,null,null,null,null,null,null,null,null,null,null,null,null,null,null,null,null,null,null,null,null,{"$f":"\"//balance-sheet-micro-entities label {\"&COLUMN(B100)&\"}\"","v":"//balance-sheet-micro-entities label {2}"},null,{"$f":"\"//balance-sheet-micro-entities \" & INDEX(labels!A49:C49,1,MATCH(PP_Language,labels!A1:C1,0)) & \" \" & BasisOfPreparationAxis & \" \" & INDEX(labels!A48:C48,1,MATCH(PP_Language,labels!A1:C1,0)) &  \"  {\"&COLUMN(D100)&\"}\"","v":"//balance-sheet-micro-entities Separate Commercial Current  {4}"},null,{"$f":"\"//balance-sheet-micro-entities \" & INDEX(labels!A49:C49,1,MATCH(PP_Language,labels!A1:C1,0)) & \" \" & BasisOfPreparationAxis & \" \" & INDEX(labels!A50:C50,1,MATCH(PP_Language,labels!A1:C1,0)) &  \"  {\"&COLUMN(F100)&\"}\"","v":"//balance-sheet-micro-entities Separate Commercial Previous  {6}"}]
["",{"$f":"INDEX(labels!A65:C65,1,MATCH(PP_Language,labels!A1:C1,0))","v":"Indication that there are no accrued assets and liabilities are recorded"}]
[""]
[""]
["",{"$f":"INDEX(labels!A66:C66,1,MATCH(PP_Language,labels!A1:C1,0))","v":"Disclosure of non-recognition of accruals and deferred income related to other operating expenses"},"",null,null,null,null,null,null,null,null,null,null,null,null,null,null,null,null,null,null,null,null,null,null,{"$f":"\"/balance-sheet-micro-entities-indication-no-accrued-assets-liabilities-are-recorded label {\"&COLUMN(B104)&\"}\"","v":"/balance-sheet-micro-entities-indication-no-accrued-assets-liabilities-are-recorded label {2}"},null,{"$f":"\"/balance-sheet-micro-entities-indication-no-accrued-assets-liabilities-are-recorded \" & INDEX(labels!A49:C49,1,MATCH(PP_Language,labels!A1:C1,0)) & \" \" & BasisOfPreparationAxis & \"  {\"&COLUMN(D104)&\"}\"","v":"/balance-sheet-micro-entities-indication-no-accrued-assets-liabilities-are-recorded Separate Commercial  {4}"}]
[""]
["",null,null,null,null,null,null,null,null,null,null,null,null,null,null,null,null,null,null,null,null,null,null,null,null,{"$f":"\"//balance-sheet-micro-entities-indication-no-accrued-assets-liabilities-are-recorded label {\"&COLUMN(B106)&\"}\"","v":"//balance-sheet-micro-entities-indication-no-accrued-assets-liabilities-are-recorded label {2}"},null,{"$f":"\"//balance-sheet-micro-entities-indication-no-accrued-assets-liabilities-are-recorded \" & INDEX(labels!A49:C49,1,MATCH(PP_Language,labels!A1:C1,0)) & \" \" & BasisOfPreparationAxis & \"  {\"&COLUMN(D106)&\"}\"","v":"//balance-sheet-micro-entities-indication-no-accrued-assets-liabilities-are-recorded Separate Commercial  {4}"}]
["",{"$f":"INDEX(labels!A67:C67,1,MATCH(PP_Language,labels!A1:C1,0))","v":"Notes to the annual report"}]
[""]
[""]
["",{"$f":"INDEX(labels!A68:C68,1,MATCH(PP_Language,labels!A1:C1,0))","v":"Disclosure of additional information to article 2:395a DCC"},"",null,null,null,null,null,null,null,null,null,null,null,null,null,null,null,null,null,null,null,null,null,null,{"$f":"\"/notes-micro-entities label {\"&COLUMN(B110)&\"}\"","v":"/notes-micro-entities label {2}"},null,{"$f":"\"/notes-micro-entities \" & INDEX(labels!A49:C49,1,MATCH(PP_Language,labels!A1:C1,0)) & \" \" & BasisOfPreparationAxis & \"  {\"&COLUMN(D110)&\"}\"","v":"/notes-micro-entities Separate Commercial  {4}"}]
["",{"$f":"INDEX(labels!A69:C69,1,MATCH(PP_Language,labels!A1:C1,0))","v":"Description of the purchase or sale of treasury shares or certificates thereof"},""]
["",{"$f":"INDEX(labels!A70:C70,1,MATCH(PP_Language,labels!A1:C1,0))","v":"Disclosure of liabilities"},""]
["",{"$f":"INDEX(labels!A71:C71,1,MATCH(PP_Language,labels!A1:C1,0))","v":"Disclosure of fiscal adjustments for prior years relating to income tax"},""]
[""]
["",null,null,null,null,null,null,null,null,null,null,null,null,null,null,null,null,null,null,null,null,null,null,null,null,{"$f":"\"//notes-micro-entities label {\"&COLUMN(B115)&\"}\"","v":"//notes-micro-entities label {2}"},null,{"$f":"\"//notes-micro-entities \" & INDEX(labels!A49:C49,1,MATCH(PP_Language,labels!A1:C1,0)) & \" \" & BasisOfPreparationAxis & \"  {\"&COLUMN(D115)&\"}\"","v":"//notes-micro-entities Separate Commercial  {4}"}]
["",{"$f":"INDEX(labels!A72:C72,1,MATCH(PP_Language,labels!A1:C1,0))","v":"Signing of the financial statements"}]
["",null,null,{"$f":"INDEX(labels!A48:C48,1,MATCH(PP_Language,labels!A1:C1,0))","v":"Current"}]
[""]
["",null,null,{"$f":"\" \"  & INDEX(labels!A73:C73,1,MATCH(PP_Language,labels!A1:C1,0)) &  \" \"","v":" Name of managing, supervisory directors and representative "},{"$f":"\" \"  & INDEX(labels!A73:C73,1,MATCH(PP_Language,labels!A1:C1,0)) &  \" \"","v":" Name of managing, supervisory directors and representative "},{"$f":"\" \"  & INDEX(labels!A73:C73,1,MATCH(PP_Language,labels!A1:C1,0)) &  \" \"","v":" Name of managing, supervisory directors and representative "},{"$f":"\" \"  & INDEX(labels!A73:C73,1,MATCH(PP_Language,labels!A1:C1,0)) &  \" \"","v":" Name of managing, supervisory directors and representative "},{"$f":"\" \"  & INDEX(labels!A73:C73,1,MATCH(PP_Language,labels!A1:C1,0)) &  \" \"","v":" Name of managing, supervisory directors and representative "},null,null,null,null,null,null,null,null,null,null,null,null,null,null,null,null,null,{"$f":"\"/signing-financial-statements label {\"&COLUMN(B119)&\"}\"","v":"/signing-financial-statements label {2}"},null,{"$f":"\"/signing-financial-statements \" & INDEX(labels!A73:C73,1,MATCH(PP_Language,labels!A1:C1,0)) & \"  {\"&COLUMN(D119)&\"}\"","v":"/signing-financial-statements Name of managing, supervisory directors and representative  {4}"},{"$f":"\"/signing-financial-statements \" & INDEX(labels!A73:C73,1,MATCH(PP_Language,labels!A1:C1,0)) & \"  {\"&COLUMN(E119)&\"}\"","v":"/signing-financial-statements Name of managing, supervisory directors and representative  {5}"},{"$f":"\"/signing-financial-statements \" & INDEX(labels!A73:C73,1,MATCH(PP_Language,labels!A1:C1,0)) & \"  {\"&COLUMN(F119)&\"}\"","v":"/signing-financial-statements Name of managing, supervisory directors and representative  {6}"},{"$f":"\"/signing-financial-statements \" & INDEX(labels!A73:C73,1,MATCH(PP_Language,labels!A1:C1,0)) & \"  {\"&COLUMN(G119)&\"}\"","v":"/signing-financial-statements Name of managing, supervisory directors and representative  {7}"},{"$f":"\"/signing-financial-statements \" & INDEX(labels!A73:C73,1,MATCH(PP_Language,labels!A1:C1,0)) & \"  {\"&COLUMN(H119)&\"}\"","v":"/signing-financial-statements Name of managing, supervisory directors and representative  {8}"}]
["",{"$f":"INDEX(labels!A74:C74,1,MATCH(PP_Language,labels!A1:C1,0))","v":"Description Name of managing, supervisory directors and representative"}]
["",{"$f":"INDEX(labels!A75:C75,1,MATCH(PP_Language,labels!A1:C1,0))","v":"Type of director"},""]
["",{"$f":"INDEX(labels!A76:C76,1,MATCH(PP_Language,labels!A1:C1,0))","v":"Name of the legal entity which functions as managing or supervisory director"},""]
["",{"$f":"INDEX(labels!A77:C77,1,MATCH(PP_Language,labels!A1:C1,0))","v":"Location of signing by managing and supervisory directors"},""]
["",{"$f":"INDEX(labels!A78:C78,1,MATCH(PP_Language,labels!A1:C1,0))","v":"Date of signing by managing and supervisory directors"},""]
["",{"$f":"INDEX(labels!A79:C79,1,MATCH(PP_Language,labels!A1:C1,0))","v":"Signed by director (Y/N)"},""]
["",{"$f":"INDEX(labels!A80:C80,1,MATCH(PP_Language,labels!A1:C1,0))","v":"Reason why the director did not sign"},""]
["",{"$f":"INDEX(labels!A81:C81,1,MATCH(PP_Language,labels!A1:C1,0))","v":"Presentation order"},""]
[""]
["",null,null,null,null,null,null,null,null,null,null,null,null,null,null,null,null,null,null,null,null,null,null,null,null,{"$f":"\"//signing-financial-statements label {\"&COLUMN(B129)&\"}\"","v":"//signing-financial-statements label {2}"},null,{"$f":"\"//signing-financial-statements \" & INDEX(labels!A73:C73,1,MATCH(PP_Language,labels!A1:C1,0)) & \"  {\"&COLUMN(D129)&\"}\"","v":"//signing-financial-statements Name of managing, supervisory directors and representative  {4}"},{"$f":"\"//signing-financial-statements \" & INDEX(labels!A73:C73,1,MATCH(PP_Language,labels!A1:C1,0)) & \"  {\"&COLUMN(E129)&\"}\"","v":"//signing-financial-statements Name of managing, supervisory directors and representative  {5}"},{"$f":"\"//signing-financial-statements \" & INDEX(labels!A73:C73,1,MATCH(PP_Language,labels!A1:C1,0)) & \"  {\"&COLUMN(F129)&\"}\"","v":"//signing-financial-statements Name of managing, supervisory directors and representative  {6}"},{"$f":"\"//signing-financial-statements \" & INDEX(labels!A73:C73,1,MATCH(PP_Language,labels!A1:C1,0)) & \"  {\"&COLUMN(G129)&\"}\"","v":"//signing-financial-statements Name of managing, supervisory directors and representative  {7}"},{"$f":"\"//signing-financial-statements \" & INDEX(labels!A73:C73,1,MATCH(PP_Language,labels!A1:C1,0)) & \"  {\"&COLUMN(H129)&\"}\"","v":"//signing-financial-statements Name of managing, supervisory directors and representative  {8}"}]

{"sheet":"labels","index":1,"n_rows":81,"n_cols":3,"rows_kept":81,"cut":false,"hidden":true,"merged":[]}
["id","en","nl"]
[0,"Document and entity information","Informatie over de rapportage en de rechtspersoon"]
[1,"Entity information","Informatie over de rechtspersoon"]
[2,"Name of the legal entity","Naam van de rechtspersoon"]
[3,"Legal form of the legal entity","Rechtsvorm van de rechtspersoon"]
[4,"Registered office of the legal entity","Zetel van de rechtspersoon"]
[5,"Registration number at the Chamber of Commerce","Registratienummer bij de Kamer van Koophandel"]
[6,"Business names","Handelsnamen"]
[7,"Classification of the legal entity based on the legal size criteria","Classificatie van de rechtspersoon op basis van de wettelijke groottecriteria"]
[8,"SBI-code","SBI-code"]
[9,"Address of the legal entity","Adres van de rechtspersoon"]
[10,"Description of location NL","Locatieomschrijving NL"]
[11,"Street name NL","Straatnaam NL"]
[12,"House number NL","Huisnummer NL"]
[13,"House number addition","Huisnummertoevoeging"]
[14,"PO box number","Postbusnummer"]
[15,"Postal code NL","Postcode NL"]
[16,"Place of residence NL","Vestigingsplaats NL"]
[17,"Description of location abroad","Locatieomschrijving buitenland"]
[18,"Street name abroad","Straatnaam buitenland"]
[19,"House number abroad","Huisnummer buitenland"]
[20,"Postal code abroad","Postcode buitenland"]
[21,"Place of residence abroad","Vestigingsplaats buitenland"]
[22,"Name region","Regionaam"]
[23,"Country name, ISO","Landnaam, ISO"]
[24,"Document information","Informatie over de rapportage"]
[25,"Title of the document","Titel van het document"]
[26,"Start date of the period concerning the financial statement","Startdatum van de periode waarop de jaarrekening betrekking heeft"]
[27,"End date of the period concerning the financial statement","Einddatum van de periode waarop de jaarrekening betrekking heeft"]
[28,"Start date of the previous period concerning the financial statement","Startdatum van de voorgaande periode waarop de jaarrekening betrekking heeft"]
[29,"End date of the previous period concerning the financial statement","Einddatum van de voorgaande periode waarop de jaarrekening betrekking heeft"]
[30,"Reporting period different than annual (Y/N)","Rapportageperiode afwijkend van een jaar (J/N)"]
[31,"Description of the reason for deviating from an annual reporting period","Beschrijving van de reden voor het afwijken van een rapportageperiode van een jaar"]
[32,"Description of the impact on comparative figures when deviating from an annual reporting period","Beschrijving van het effect op de vergelijkende cijfers bij het afwijken van rapportageperiode van een jaar"]
[33,"Basis of preparation","Type grondslag"]
[34,"Presentation currency of the document","Rapporteringsvaluta van het document"]
[35,"Units in which the figures in the financial statements are expressed","Geldeenheid waarin de cijfers in de jaarrekening zijn uitgedrukt"]
[36,"Date of preparation of the financial statements","Datum van opmaak van de jaarrekening"]
[37,"Financial statements adopted (Y/N)","Jaarrekening vastgesteld (J/N)"]
[38,"Date of adoption of the financial statements","Datum van vaststelling van de jaarrekening"]
[39,"Resubmission of document due to substantive and insurmountable inaccuracies (Y/N)","Heraanlevering van het document op basis van inhoudelijk en onoverkomelijke onjuistheden (J/N)"]
[40,"Explanation of resubmission of the document due to substantive and insurmountable inaccuracies","Toelichting op heraanlevering van het document op basis van inhoudelijk en onoverkomelijke onjuistheden"]
[41,"Resubmission of the document due to technical and/or process-related inaccuracies (Y/N)","Heraanlevering van het document op basis van technische en/of procesmatige onjuistheden (J/N)"]
[42,"Explanation of resubmission of document due to technical and/or process-related inaccuracies","Toelichting op heraanlevering van het document op basis van technische en/of procesmatige onjuistheden"]
[43,"Email address","E-mailadres"]
[44,"Company financial statements","Enkelvoudige jaarrekening"]
[45,"Balance sheet","Balans"]
[46,"Current","Huidig"]
[47,"Separate","Enkelvoudig"]
[48,"Previous","Voorgaand"]
[49,"Balance sheet before or after appropriation of results","Balans voor of na resultaatbestemming"]
[50,"Costs relating to the incorporation and issuance of shares","Kosten die verband houden met de oprichting en met de uitgifte van aandelen"]
[51,"Other non-current assets","Overige vaste activa"]
[52,"Total of non-current assets","Totaal van vaste activa"]
[53,"Called-up share capital","Van aandeelhouders opgevraagde stortingen"]
[54,"Other current assets","Overige vlottende activa"]
[55,"Total of current assets","Totaal van vlottende activa"]
[56,"Total of assets","Totaal van activa"]
[57,"Equity","Eigen vermogen"]
[58,"Provisions","Voorzieningen"]
[59,"Liabilities with a maturity exceeding one year","Schulden met een looptijd langer dan een jaar"]
[60,"Liabilities with a maturity of no more than one year","Schulden met een looptijd van ten hoogste een jaar"]
[61,"Total of liabilities","Totaal van schulden"]
[62,"Total of equity and liabilities","Totaal van passiva"]
[63,"Indication that there are no accrued assets and liabilities are recorded","Vermelding dat er geen overlopende activa en passiva zijn opgenomen"]
[64,"Disclosure of non-recognition of accruals and deferred income related to other operating expenses","Vermelding van het feit dat geen overlopende activa en passiva met betrekking tot overige bedrijfskosten zijn opgenomen"]
[65,"Notes to the annual report","Toelichting op de jaarverantwoording"]
[66,"Disclosure of additional information to article 2:395a DCC","Informatieverschaffing over aanvullende informatie ten opzichte van artikel 2:395a BW"]
[67,"Description of the purchase or sale of treasury shares or certificates thereof","Beschrijving van de verwerving en vervreemding van eigen aandelen en certificaten daarvan"]
[68,"Disclosure of liabilities","Informatieverschaffing over schulden"]
[69,"Disclosure of fiscal adjustments for prior years relating to income tax","Informatieverschaffing over fiscale correcties over eerdere jaren inzake belastingen"]
[70,"Signing of the financial statements","Ondertekening van de jaarrekening"]
[71,"Name of managing, supervisory directors and representative","Naam bestuurder, commissaris en vertegenwoordiger"]
[72,"Description Name of managing, supervisory directors and representative","Omschrijving Naam bestuurder, commissaris en vertegenwoordiger"]
[73,"Type of director","Soort bestuurder of commissaris"]
[74,"Name of the legal entity which functions as managing or supervisory director","Naam van de rechtspersoon die optreedt als bestuurder of commissaris"]
[75,"Location of signing by managing and supervisory directors","Locatie van de ondertekening door bestuurders en commissarissen"]
[76,"Date of signing by managing and supervisory directors","Datum van de ondertekening door bestuurders en commissarissen"]
[77,"Signed by director (Y/N)","Ondertekend door bestuurder of commissaris (J/N)"]
[78,"Reason why the director did not sign","Reden waarom de bestuurder of commissaris niet heeft ondertekend"]
[79,"Presentation order","Presentatievolgorde"]

{"sheet":"Enumerations","index":2,"n_rows":934,"n_cols":41,"rows_kept":934,"cut":false,"hidden":true,"merged":[]}
["Besloten vennootschap met beperkte aansprakelijkheid",null,"Micro",null,"0111",null,"Ja",null,"Commercieel",null,"AED",null,"Ja",null,"Ja",null,"Ja",null,"Na",null,"Na",null,"Bestuurder (huidig)",null,"Bestuurder (huidig)",null,"Bestuurder (huidig)",null,"Bestuurder (huidig)",null,"Bestuurder (huidig)",null,"Ja",null,"Ja",null,"Ja",null,"Ja",null,"Ja"]
["Commanditaire vennootschap",null,null,null,"0116",null,"Nee",null,"Fiscaal",null,"AFN",null,"Nee",null,"Nee",null,"Nee",null,"Voor",null,"Voor",null,"Bestuurder (voormalig)",null,"Bestuurder (voormalig)",null,"Bestuurder (voormalig)",null,"Bestuurder (voormalig)",null,"Bestuurder (voormalig)",null,"Nee",null,"Nee",null,"Nee",null,"Nee",null,"Nee"]
["Cooperatie",null,null,null,"0121",null,null,null,null,null,"ALL",null,null,null,null,null,null,null,null,null,null,null,"Commissaris (huidig)",null,"Commissaris (huidig)",null,"Commissaris (huidig)",null,"Commissaris (huidig)",null,"Commissaris (huidig)"]
["Naamloze vennootschap",null,null,null,"0127",null,null,null,null,null,"AMD",null,null,null,null,null,null,null,null,null,null,null,"Commissaris (voormalig)",null,"Commissaris (voormalig)",null,"Commissaris (voormalig)",null,"Commissaris (voormalig)",null,"Commissaris (voormalig)"]
["Onderlinge waarborgmaatschappij",null,null,null,"0128",null,null,null,null,null,"ANG"]
["Stichting",null,null,null,"0129",null,null,null,null,null,"AOA"]
["Vennootschap onder firma",null,null,null,"0143",null,null,null,null,null,"ARS"]
["Vereniging",null,null,null,"0150",null,null,null,null,null,"AUD"]
[null,null,null,null,"0161",null,null,null,null,null,"AWG"]
[null,null,null,null,"0162",null,null,null,null,null,"AZN"]
[null,null,null,null,"0163",null,null,null,null,null,"BAM"]
[null,null,null,null,"0164",null,null,null,null,null,"BBD"]
[null,null,null,null,"0170",null,null,null,null,null,"BDT"]
[null,null,null,null,"0210",null,null,null,null,null,"BGN"]
[null,null,null,null,"0220",null,null,null,null,null,"BHD"]
[null,null,null,null,"0240",null,null,null,null,null,"BIF"]
[null,null,null,null,"0311",null,null,null,null,null,"BMD"]
[null,null,null,null,"0312",null,null,null,null,null,"BND"]
[null,null,null,null,"0321",null,null,null,null,null,"BOB"]
[null,null,null,null,"0322",null,null,null,null,null,"BOV"]
[null,null,null,null,"0610",null,null,null,null,null,"BRL"]
[null,null,null,null,"0620",null,null,null,null,null,"BSD"]
[null,null,null,null,"0812",null,null,null,null,null,"BTN"]
[null,null,null,null,"0892",null,null,null,null,null,"BWP"]
[null,null,null,null,"0893",null,null,null,null,null,"BYN"]
[null,null,null,null,"0899",null,null,null,null,null,"BZD"]
[null,null,null,null,"0910",null,null,null,null,null,"CAD"]
[null,null,null,null,"0990",null,null,null,null,null,"CDF"]
[null,null,null,null,"1011",null,null,null,null,null,"CHE"]
[null,null,null,null,"1012",null,null,null,null,null,"CHF"]
[null,null,null,null,"1013",null,null,null,null,null,"CHW"]
[null,null,null,null,"1020",null,null,null,null,null,"CLF"]
[null,null,null,null,"1031",null,null,null,null,null,"CLP"]
[null,null,null,null,"1032",null,null,null,null,null,"CNY"]
[null,null,null,null,"1039",null,null,null,null,null,"COP"]
[null,null,null,null,"1041",null,null,null,null,null,"COU"]
[null,null,null,null,"1042",null,null,null,null,null,"CRC"]
[null,null,null,null,"1051",null,null,null,null,null,"CUC"]
[null,null,null,null,"1052",null,null,null,null,null,"CUP"]
[null,null,null,null,"1061",null,null,null,null,null,"CVE"]
[null,null,null,null,"1062",null,null,null,null,null,"CZK"]
[null,null,null,null,"1071",null,null,null,null,null,"DJF"]
[null,null,null,null,"1072",null,null,null,null,null,"DKK"]
[null,null,null,null,"1073",null,null,null,null,null,"DOP"]
[null,null,null,null,"1081",null,null,null,null,null,"DZD"]
[null,null,null,null,"1083",null,null,null,null,null,"EGP"]
[null,null,null,null,"1084",null,null,null,null,null,"ERN"]
[null,null,null,null,"1085",null,null,null,null,null,"ETB"]
[null,null,null,null,"1086",null,null,null,null,null,"EUR"]
[null,null,null,null,"1089",null,null,null,null,null,"FJD"]
[null,null,null,null,"1091",null,null,null,null,null,"FKP"]
[null,null,null,null,"1092",null,null,null,null,null,"GBP"]
[null,null,null,null,"1101",null,null,null,null,null,"GEL"]
[null,null,null,null,"1102",null,null,null,null,null,"GHS"]
[null,null,null,null,"1103",null,null,null,null,null,"GIP"]
[null,null,null,null,"1104",null,null,null,null,null,"GMD"]
[null,null,null,null,"1105",null,null,null,null,null,"GNF"]
[null,null,null,null,"1106",null,null,null,null,null,"GTQ"]
[null,null,null,null,"1107",null,null,null,null,null,"GYD"]
[null,null,null,null,"1200",null,null,null,null,null,"HKD"]
[null,null,null,null,"1310",null,null,null,null,null,"HNL"]
[null,null,null,null,"1320",null,null,null,null,null,"HTG"]
[null,null,null,null,"1330",null,null,null,null,null,"HUF"]
[null,null,null,null,"1391",null,null,null,null,null,"IDR"]
[null,null,null,null,"1392",null,null,null,null,null,"ILS"]
[null,null,null,null,"1393",null,null,null,null,null,"INR"]
[null,null,null,null,"1394",null,null,null,null,null,"IQD"]
[null,null,null,null,"1395",null,null,null,null,null,"IRR"]
[null,null,null,null,"1396",null,null,null,null,null,"ISK"]
[null,null,null,null,"1399",null,null,null,null,null,"JMD"]
[null,null,null,null,"1411",null,null,null,null,null,"JOD"]
[null,null,null,null,"1412",null,null,null,null,null,"JPY"]
[null,null,null,null,"1413",null,null,null,null,null,"KES"]
[null,null,null,null,"1414",null,null,null,null,null,"KGS"]
[null,null,null,null,"1419",null,null,null,null,null,"KHR"]
[null,null,null,null,"1420",null,null,null,null,null,"KMF"]
[null,null,null,null,"1431",null,null,null,null,null,"KPW"]
[null,null,null,null,"1439",null,null,null,null,null,"KRW"]
[null,null,null,null,"1511",null,null,null,null,null,"KWD"]
[null,null,null,null,"1512",null,null,null,null,null,"KYD"]
[null,null,null,null,"1520",null,null,null,null,null,"KZT"]
[null,null,null,null,"1621",null,null,null,null,null,"LAK"]
[null,null,null,null,"1622",null,null,null,null,null,"LBP"]
[null,null,null,null,"1624",null,null,null,null,null,"LKR"]
[null,null,null,null,"1629",null,null,null,null,null,"LRD"]
[null,null,null,null,"1711",null,null,null,null,null,"LSL"]
[null,null,null,null,"1722",null,null,null,null,null,"LYD"]
[null,null,null,null,"1723",null,null,null,null,null,"MAD"]
[null,null,null,null,"1724",null,null,null,null,null,"MDL"]
[null,null,null,null,"1729",null,null,null,null,null,"MGA"]
[null,null,null,null,"1811",null,null,null,null,null,"MKD"]
[null,null,null,null,"1813",null,null,null,null,null,"MMK"]
[null,null,null,null,"1814",null,null,null,null,null,"MNT"]
[null,null,null,null,"1820",null,null,null,null,null,"MOP"]
[null,null,null,null,"1910",null,null,null,null,null,"MRU"]
[null,null,null,null,"2011",null,null,null,null,null,"MUR"]
[null,null,null,null,"2012",null,null,null,null,null,"MVR"]
[null,null,null,null,"2013",null,null,null,null,null,"MWK"]
[null,null,null,null,"2015",null,null,null,null,null,"MXN"]
[null,null,null,null,"2016",null,null,null,null,null,"MXV"]
[null,null,null,null,"2017",null,null,null,null,null,"MYR"]
[null,null,null,null,"2020",null,null,null,null,null,"MZN"]
[null,null,null,null,"2030",null,null,null,null,null,"NAD"]
[null,null,null,null,"2041",null,null,null,null,null,"NGN"]
[null,null,null,null,"2042",null,null,null,null,null,"NIO"]
[null,null,null,null,"2051",null,null,null,null,null,"NOK"]
[null,null,null,null,"2052",null,null,null,null,null,"NPR"]
[null,null,null,null,"2053",null,null,null,null,null,"NZD"]
[null,null,null,null,"2059",null,null,null,null,null,"OMR"]
[null,null,null,null,"2060",null,null,null,null,null,"PAB"]
[null,null,null,null,"2110",null,null,null,null,null,"PEN"]
[null,null,null,null,"2120",null,null,null,null,null,"PGK"]
[null,null,null,null,"2211",null,null,null,null,null,"PHP"]
[null,null,null,null,"2219",null,null,null,null,null,"PKR"]
[null,null,null,null,"2221",null,null,null,null,null,"PLN"]
[null,null,null,null,"2222",null,null,null,null,null,"PYG"]
[null,null,null,null,"2223",null,null,null,null,null,"QAR"]
[null,null,null,null,"2229",null,null,null,null,null,"RON"]
[null,null,null,null,"2311",null,null,null,null,null,"RSD"]
[null,null,null,null,"2312",null,null,null,null,null,"RUB"]
[null,null,null,null,"2313",null,null,null,null,null,"RWF"]
[null,null,null,null,"2314",null,null,null,null,null,"SAR"]
[null,null,null,null,"2319",null,null,null,null,null,"SBD"]
[null,null,null,null,"2320",null,null,null,null,null,"SCR"]
[null,null,null,null,"2331",null,null,null,null,null,"SDG"]
[null,null,null,null,"2332",null,null,null,null,null,"SEK"]
[null,null,null,null,"2341",null,null,null,null,null,"SGD"]
[null,null,null,null,"2342",null,null,null,null,null,"SHP"]
[null,null,null,null,"2343",null,null,null,null,null,"SLL"]
[null,null,null,null,"2344",null,null,null,null,null,"SOS"]
[null,null,null,null,"2349",null,null,null,null,null,"SRD"]
[null,null,null,null,"2351",null,null,null,null,null,"SSP"]
[null,null,null,null,"2352",null,null,null,null,null,"STN"]
[null,null,null,null,"2362",null,null,null,null,null,"SVC"]
[null,null,null,null,"2363",null,null,null,null,null,"SYP"]
[null,null,null,null,"2364",null,null,null,null,null,"SZL"]
[null,null,null,null,"2365",null,null,null,null,null,"THB"]
[null,null,null,null,"2369",null,null,null,null,null,"TJS"]
[null,null,null,null,"2370",null,null,null,null,null,"TMT"]
[null,null,null,null,"2391",null,null,null,null,null,"TND"]
[null,null,null,null,"2399",null,null,null,null,null,"TOP"]
[null,null,null,null,"2410",null,null,null,null,null,"TRY"]
[null,null,null,null,"2420",null,null,null,null,null,"TTD"]
[null,null,null,null,"2431",null,null,null,null,null,"TWD"]
[null,null,null,null,"2432",null,null,null,null,null,"TZS"]
[null,null,null,null,"2433",null,null,null,null,null,"UAH"]
[null,null,null,null,"2434",null,null,null,null,null,"UGX"]
[null,null,null,null,"2441",null,null,null,null,null,"USD"]
[null,null,null,null,"2442",null,null,null,null,null,"USN"]
[null,null,null,null,"2443",null,null,null,null,null,"UYI"]
[null,null,null,null,"2444",null,null,null,null,null,"UYU"]
[null,null,null,null,"2445",null,null,null,null,null,"UYW"]
[null,null,null,null,"2446",null,null,null,null,null,"UZS"]
[null,null,null,null,"2451",null,null,null,null,null,"VES"]
[null,null,null,null,"2452",null,null,null,null,null,"VND"]
[null,null,null,null,"2453",null,null,null,null,null,"VUV"]
[null,null,null,null,"2454",null,null,null,null,null,"WST"]
[null,null,null,null,"2511",null,null,null,null,null,"XAF"]
[null,null,null,null,"2512",null,null,null,null,null,"XAG"]
[null,null,null,null,"2521",null,null,null,null,null,"XAU"]
[null,null,null,null,"2529",null,null,null,null,null,"XBA"]
[null,null,null,null,"2530",null,null,null,null,null,"XBB"]
[null,null,null,null,"2540",null,null,null,null,null,"XBC"]
[null,null,null,null,"2550",null,null,null,null,null,"XBD"]
[null,null,null,null,"2561",null,null,null,null,null,"XCD"]
[null,null,null,null,"2562",null,null,null,null,null,"XDR"]
[null,null,null,null,"2571",null,null,null,null,null,"XOF"]
[null,null,null,null,"2572",null,null,null,null,null,"XPD"]
[null,null,null,null,"2573",null,null,null,null,null,"XPF"]
[null,null,null,null,"2591",null,null,null,null,null,"XPT"]
[null,null,null,null,"2592",null,null,null,null,null,"XSU"]
[null,null,null,null,"2593",null,null,null,null,null,"XTS"]
[null,null,null,null,"2594",null,null,null,null,null,"XUA"]
[null,null,null,null,"2599",null,null,null,null,null,"XXX"]
[null,null,null,null,"2611",null,null,null,null,null,"YER"]
[null,null,null,null,"2612",null,null,null,null,null,"ZAR"]
[null,null,null,null,"2620",null,null,null,null,null,"ZMW"]
[null,null,null,null,"2630",null,null,null,null,null,"ZWL"]
[null,null,null,null,"2640"]
[null,null,null,null,"2651"]
[null,null,null,null,"2652"]
[null,null,null,null,"2660"]
[null,null,null,null,"2670"]
[null,null,null,null,"2680"]
[null,null,null,null,"2711"]
[null,null,null,null,"2712"]
[null,null,null,null,"2720"]
[null,null,null,null,"2731"]
[null,null,null,null,"2732"]
[null,null,null,null,"2733"]
[null,null,null,null,"2740"]
[null,null,null,null,"2751"]
[null,null,null,null,"2752"]
[null,null,null,null,"2790"]
[null,null,null,null,"2811"]
[null,null,null,null,"2812"]
[null,null,null,null,"2813"]
[null,null,null,null,"2814"]
[null,null,null,null,"2815"]
[null,null,null,null,"2821"]
[null,null,null,null,"2822"]
[null,null,null,null,"2823"]
[null,null,null,null,"2824"]
[null,null,null,null,"2825"]
[null,null,null,null,"2829"]
[null,null,null,null,"2830"]
[null,null,null,null,"2841"]
[null,null,null,null,"2849"]
[null,null,null,null,"2891"]
[null,null,null,null,"2892"]
[null,null,null,null,"2893"]
[null,null,null,null,"2894"]
[null,null,null,null,"2895"]
[null,null,null,null,"2896"]
[null,null,null,null,"2899"]
[null,null,null,null,"2910"]
[null,null,null,null,"2931"]
[null,null,null,null,"2932"]
[null,null,null,null,"3011"]
[null,null,null,null,"3012"]
[null,null,null,null,"3020"]
[null,null,null,null,"3030"]
[null,null,null,null,"3040"]
[null,null,null,null,"3091"]
[null,null,null,null,"3092"]
[null,null,null,null,"3099"]
[null,null,null,null,"3102"]
[null,null,null,null,"3103"]
[null,null,null,null,"3109"]
[null,null,null,null,"3211"]
[null,null,null,null,"3212"]
[null,null,null,null,"3213"]
[null,null,null,null,"3220"]
[null,null,null,null,"3230"]
[null,null,null,null,"3240"]
[null,null,null,null,"3291"]
[null,null,null,null,"3311"]
[null,null,null,null,"3313"]
[null,null,null,null,"3314"]
[null,null,null,null,"3315"]
[null,null,null,null,"3316"]
[null,null,null,null,"3317"]
[null,null,null,null,"3319"]
[null,null,null,null,"3321"]
[null,null,null,null,"3323"]
[null,null,null,null,"3324"]
[null,null,null,null,"3329"]
[null,null,null,null,"3512"]
[null,null,null,null,"3513"]
[null,null,null,null,"3514"]
[null,null,null,null,"3520"]
[null,null,null,null,"3530"]
[null,null,null,null,"3600"]
[null,null,null,null,"3700"]
[null,null,null,null,"3811"]
[null,null,null,null,"3812"]
[null,null,null,null,"3821"]
[null,null,null,null,"3822"]
[null,null,null,null,"3831"]
[null,null,null,null,"3832"]
[null,null,null,null,"3900"]
[null,null,null,null,"4110"]
[null,null,null,null,"4120"]
[null,null,null,null,"4212"]
[null,null,null,null,"4213"]
[null,null,null,null,"4221"]
[null,null,null,null,"4222"]
[null,null,null,null,"4291"]
[null,null,null,null,"4299"]
[null,null,null,null,"4311"]
[null,null,null,null,"4312"]
[null,null,null,null,"4313"]
[null,null,null,null,"4321"]
[null,null,null,null,"4329"]
[null,null,null,null,"4331"]
[null,null,null,null,"4332"]
[null,null,null,null,"4333"]
[null,null,null,null,"4334"]
[null,null,null,null,"4339"]
[null,null,null,null,"4391"]
[null,null,null,null,"4532"]
[null,null,null,null,"4611"]
[null,null,null,null,"4612"]
[null,null,null,null,"4613"]
[null,null,null,null,"4614"]
[null,null,null,null,"4615"]
[null,null,null,null,"4616"]
[null,null,null,null,"4617"]
[null,null,null,null,"4618"]
[null,null,null,null,"4619"]
[null,null,null,null,"4622"]
[null,null,null,null,"4632"]
[null,null,null,null,"4634"]
[null,null,null,null,"4635"]
[null,null,null,null,"4636"]
[null,null,null,null,"4637"]
[null,null,null,null,"4639"]
[null,null,null,null,"4645"]
[null,null,null,null,"4648"]
[null,null,null,null,"4651"]
[null,null,null,null,"4652"]
[null,null,null,null,"4661"]
[null,null,null,null,"4662"]
[null,null,null,null,"4663"]
[null,null,null,null,"4664"]
[null,null,null,null,"4665"]
[null,null,null,null,"4666"]
[null,null,null,null,"4711"]
[null,null,null,null,"4721"]
[null,null,null,null,"4723"]
[null,null,null,null,"4725"]
[null,null,null,null,"4726"]
[null,null,null,null,"4730"]
[null,null,null,null,"4741"]
[null,null,null,null,"4742"]
[null,null,null,null,"4753"]
[null,null,null,null,"4761"]
[null,null,null,null,"4762"]
[null,null,null,null,"4763"]
[null,null,null,null,"4765"]
[null,null,null,null,"4773"]
[null,null,null,null,"4775"]
[null,null,null,null,"4777"]
[null,null,null,null,"4782"]
[null,null,null,null,"4910"]
[null,null,null,null,"4920"]
[null,null,null,null,"4931"]
[null,null,null,null,"4932"]
[null,null,null,null,"4941"]
[null,null,null,null,"4942"]
[null,null,null,null,"4950"]
[null,null,null,null,"5010"]
[null,null,null,null,"5030"]
[null,null,null,null,"5110"]
[null,null,null,null,"5121"]
[null,null,null,null,"5221"]
[null,null,null,null,"5222"]
[null,null,null,null,"5223"]
[null,null,null,null,"5310"]
[null,null,null,null,"5530"]
[null,null,null,null,"5590"]
[null,null,null,null,"5621"]
[null,null,null,null,"5629"]
[null,null,null,null,"5630"]
[null,null,null,null,"5811"]
[null,null,null,null,"5812"]
[null,null,null,null,"5813"]
[null,null,null,null,"5814"]
[null,null,null,null,"5819"]
[null,null,null,null,"5821"]
[null,null,null,null,"5829"]
[null,null,null,null,"5912"]
[null,null,null,null,"5913"]
[null,null,null,null,"5914"]
[null,null,null,null,"5920"]
[null,null,null,null,"6010"]
[null,null,null,null,"6020"]
[null,null,null,null,"6110"]
[null,null,null,null,"6120"]
[null,null,null,null,"6130"]
[null,null,null,null,"6190"]
[null,null,null,null,"6201"]
[null,null,null,null,"6202"]
[null,null,null,null,"6203"]
[null,null,null,null,"6209"]
[null,null,null,null,"6311"]
[null,null,null,null,"6312"]
[null,null,null,null,"6391"]
[null,null,null,null,"6399"]
[null,null,null,null,"6411"]
[null,null,null,null,"6420"]
[null,null,null,null,"6491"]
[null,null,null,null,"6499"]
[null,null,null,null,"6520"]
[null,null,null,null,"6611"]
[null,null,null,null,"6612"]
[null,null,null,null,"6621"]
[null,null,null,null,"6622"]
[null,null,null,null,"6630"]
[null,null,null,null,"6810"]
[null,null,null,null,"6831"]
[null,null,null,null,"6832"]
[null,null,null,null,"7021"]
[null,null,null,null,"7112"]
[null,null,null,null,"7220"]
[null,null,null,null,"7311"]
[null,null,null,null,"7312"]
[null,null,null,null,"7320"]
[null,null,null,null,"7430"]
[null,null,null,null,"7490"]
[null,null,null,null,"7500"]
[null,null,null,null,"7712"]
[null,null,null,null,"7721"]
[null,null,null,null,"7722"]
[null,null,null,null,"7731"]
[null,null,null,null,"7732"]
[null,null,null,null,"7733"]
[null,null,null,null,"7734"]
[null,null,null,null,"7735"]
[null,null,null,null,"7740"]
[null,null,null,null,"7810"]
[null,null,null,null,"7830"]
[null,null,null,null,"7911"]
[null,null,null,null,"7912"]
[null,null,null,null,"7990"]
[null,null,null,null,"8010"]
[null,null,null,null,"8020"]
[null,null,null,null,"8030"]
[null,null,null,null,"8110"]
[null,null,null,null,"8121"]
[null,null,null,null,"8129"]
[null,null,null,null,"8130"]
[null,null,null,null,"8211"]
[null,null,null,null,"8219"]
[null,null,null,null,"8220"]
[null,null,null,null,"8230"]
[null,null,null,null,"8291"]
[null,null,null,null,"8292"]
[null,null,null,null,"8411"]
[null,null,null,null,"8412"]
[null,null,null,null,"8413"]
[null,null,null,null,"8421"]
[null,null,null,null,"8422"]
[null,null,null,null,"8424"]
[null,null,null,null,"8425"]
[null,null,null,null,"8430"]
[null,null,null,null,"8541"]
[null,null,null,null,"8542"]
[null,null,null,null,"8553"]
[null,null,null,null,"8560"]
[null,null,null,null,"8621"]
[null,null,null,null,"8710"]
[null,null,null,null,"8720"]
[null,null,null,null,"8891"]
[null,null,null,null,"9002"]
[null,null,null,null,"9003"]
[null,null,null,null,"9103"]
[null,null,null,null,"9313"]
[null,null,null,null,"9411"]
[null,null,null,null,"9412"]
[null,null,null,null,"9420"]
[null,null,null,null,"9492"]
[null,null,null,null,"9511"]
[null,null,null,null,"9512"]
[null,null,null,null,"9521"]
[null,null,null,null,"9522"]
[null,null,null,null,"9523"]
[null,null,null,null,"9524"]
[null,null,null,null,"9525"]
[null,null,null,null,"9529"]
[null,null,null,null,"9604"]
[null,null,null,null,"9609"]
[null,null,null,null,"9700"]
[null,null,null,null,"9810"]
[null,null,null,null,"9820"]
[null,null,null,null,"9900"]
[null,null,null,null,"01131"]
[null,null,null,null,"01132"]
[null,null,null,null,"01133"]
[null,null,null,null,"01134"]
[null,null,null,null,"01191"]
[null,null,null,null,"01192"]
[null,null,null,null,"01193"]
[null,null,null,null,"01199"]
[null,null,null,null,"01241"]
[null,null,null,null,"01242"]
[null,null,null,null,"01251"]
[null,null,null,null,"01252"]
[null,null,null,null,"01253"]
[null,null,null,null,"01254"]
[null,null,null,null,"01301"]
[null,null,null,null,"01302"]
[null,null,null,null,"01303"]
[null,null,null,null,"01304"]
[null,null,null,null,"01305"]
[null,null,null,null,"01309"]
[null,null,null,null,"01411"]
[null,null,null,null,"01412"]
[null,null,null,null,"01421"]
[null,null,null,null,"01422"]
[null,null,null,null,"01451"]
[null,null,null,null,"01452"]
[null,null,null,null,"01461"]
[null,null,null,null,"01462"]
[null,null,null,null,"01463"]
[null,null,null,null,"01471"]
[null,null,null,null,"01472"]
[null,null,null,null,"01473"]
[null,null,null,null,"01479"]
[null,null,null,null,"01491"]
[null,null,null,null,"01499"]
[null,null,null,null,"10821"]
[null,null,null,null,"10822"]
[null,null,null,null,"16101"]
[null,null,null,null,"16102"]
[null,null,null,null,"16231"]
[null,null,null,null,"16239"]
[null,null,null,null,"17121"]
[null,null,null,null,"17122"]
[null,null,null,null,"17129"]
[null,null,null,null,"17211"]
[null,null,null,null,"17212"]
[null,null,null,null,"18121"]
[null,null,null,null,"18122"]
[null,null,null,null,"18123"]
[null,null,null,null,"18124"]
[null,null,null,null,"18125"]
[null,null,null,null,"18129"]
[null,null,null,null,"19201"]
[null,null,null,null,"19202"]
[null,null,null,null,"20141"]
[null,null,null,null,"20149"]
[null,null,null,null,"23611"]
[null,null,null,null,"23612"]
[null,null,null,null,"29201"]
[null,null,null,null,"29202"]
[null,null,null,null,"31011"]
[null,null,null,null,"31012"]
[null,null,null,null,"32501"]
[null,null,null,null,"32502"]
[null,null,null,null,"32991"]
[null,null,null,null,"32999"]
[null,null,null,null,"33121"]
[null,null,null,null,"33122"]
[null,null,null,null,"33123"]
[null,null,null,null,"33221"]
[null,null,null,null,"33222"]
[null,null,null,null,"33223"]
[null,null,null,null,"35111"]
[null,null,null,null,"35112"]
[null,null,null,null,"35113"]
[null,null,null,null,"42111"]
[null,null,null,null,"42112"]
[null,null,null,null,"43221"]
[null,null,null,null,"43222"]
[null,null,null,null,"43991"]
[null,null,null,null,"43992"]
[null,null,null,null,"43993"]
[null,null,null,null,"43999"]
[null,null,null,null,"45111"]
[null,null,null,null,"45112"]
[null,null,null,null,"45191"]
[null,null,null,null,"45192"]
[null,null,null,null,"45193"]
[null,null,null,null,"45194"]
[null,null,null,null,"45201"]
[null,null,null,null,"45202"]
[null,null,null,null,"45203"]
[null,null,null,null,"45204"]
[null,null,null,null,"45205"]
[null,null,null,null,"45311"]
[null,null,null,null,"45312"]
[null,null,null,null,"45401"]
[null,null,null,null,"45402"]
[null,null,null,null,"46211"]
[null,null,null,null,"46212"]
[null,null,null,null,"46213"]
[null,null,null,null,"46214"]
[null,null,null,null,"46215"]
[null,null,null,null,"46216"]
[null,null,null,null,"46217"]
[null,null,null,null,"46218"]
[null,null,null,null,"46219"]
[null,null,null,null,"46231"]
[null,null,null,null,"46232"]
[null,null,null,null,"46241"]
[null,null,null,null,"46242"]
[null,null,null,null,"46311"]
[null,null,null,null,"46312"]
[null,null,null,null,"46331"]
[null,null,null,null,"46332"]
[null,null,null,null,"46381"]
[null,null,null,null,"46382"]
[null,null,null,null,"46383"]
[null,null,null,null,"46384"]
[null,null,null,null,"46389"]
[null,null,null,null,"46411"]
[null,null,null,null,"46412"]
[null,null,null,null,"46421"]
[null,null,null,null,"46422"]
[null,null,null,null,"46423"]
[null,null,null,null,"46424"]
[null,null,null,null,"46425"]
[null,null,null,null,"46429"]
[null,null,null,null,"46431"]
[null,null,null,null,"46432"]
[null,null,null,null,"46433"]
[null,null,null,null,"46434"]
[null,null,null,null,"46435"]
[null,null,null,null,"46436"]
[null,null,null,null,"46441"]
[null,null,null,null,"46442"]
[null,null,null,null,"46461"]
[null,null,null,null,"46462"]
[null,null,null,null,"46471"]
[null,null,null,null,"46472"]
[null,null,null,null,"46473"]
[null,null,null,null,"46491"]
[null,null,null,null,"46492"]
[null,null,null,null,"46493"]
[null,null,null,null,"46494"]
[null,null,null,null,"46495"]
[null,null,null,null,"46496"]
[null,null,null,null,"46497"]
[null,null,null,null,"46498"]
[null,null,null,null,"46499"]
[null,null,null,null,"46681"]
[null,null,null,null,"46682"]
[null,null,null,null,"46691"]
[null,null,null,null,"46692"]
[null,null,null,null,"46693"]
[null,null,null,null,"46694"]
[null,null,null,null,"46695"]
[null,null,null,null,"46696"]
[null,null,null,null,"46697"]
[null,null,null,null,"46699"]
[null,null,null,null,"46711"]
[null,null,null,null,"46712"]
[null,null,null,null,"46713"]
[null,null,null,null,"46721"]
[null,null,null,null,"46722"]
[null,null,null,null,"46723"]
[null,null,null,null,"46731"]
[null,null,null,null,"46732"]
[null,null,null,null,"46733"]
[null,null,null,null,"46734"]
[null,null,null,null,"46735"]
[null,null,null,null,"46736"]
[null,null,null,null,"46737"]
[null,null,null,null,"46738"]
[null,null,null,null,"46739"]
[null,null,null,null,"46741"]
[null,null,null,null,"46742"]
[null,null,null,null,"46751"]
[null,null,null,null,"46752"]
[null,null,null,null,"46761"]
[null,null,null,null,"46762"]
[null,null,null,null,"46769"]
[null,null,null,null,"46771"]
[null,null,null,null,"46772"]
[null,null,null,null,"46779"]
[null,null,null,null,"46901"]
[null,null,null,null,"46902"]
[null,null,null,null,"47191"]
[null,null,null,null,"47192"]
[null,null,null,null,"47221"]
[null,null,null,null,"47222"]
[null,null,null,null,"47241"]
[null,null,null,null,"47242"]
[null,null,null,null,"47291"]
[null,null,null,null,"47292"]
[null,null,null,null,"47293"]
[null,null,null,null,"47299"]
[null,null,null,null,"47431"]
[null,null,null,null,"47432"]
[null,null,null,null,"47511"]
[null,null,null,null,"47512"]
[null,null,null,null,"47513"]
[null,null,null,null,"47521"]
[null,null,null,null,"47522"]
[null,null,null,null,"47523"]
[null,null,null,null,"47524"]
[null,null,null,null,"47525"]
[null,null,null,null,"47526"]
[null,null,null,null,"47527"]
[null,null,null,null,"47528"]
[null,null,null,null,"47541"]
[null,null,null,null,"47542"]
[null,null,null,null,"47543"]
[null,null,null,null,"47544"]
[null,null,null,null,"47591"]
[null,null,null,null,"47592"]
[null,null,null,null,"47593"]
[null,null,null,null,"47594"]
[null,null,null,null,"47595"]
[null,null,null,null,"47596"]
[null,null,null,null,"47597"]
[null,null,null,null,"47641"]
[null,null,null,null,"47642"]
[null,null,null,null,"47643"]
[null,null,null,null,"47644"]
[null,null,null,null,"47711"]
[null,null,null,null,"47712"]
[null,null,null,null,"47713"]
[null,null,null,null,"47714"]
[null,null,null,null,"47715"]
[null,null,null,null,"47716"]
[null,null,null,null,"47717"]
[null,null,null,null,"47718"]
[null,null,null,null,"47721"]
[null,null,null,null,"47722"]
[null,null,null,null,"47741"]
[null,null,null,null,"47742"]
[null,null,null,null,"47761"]
[null,null,null,null,"47762"]
[null,null,null,null,"47763"]
[null,null,null,null,"47781"]
[null,null,null,null,"47782"]
[null,null,null,null,"47783"]
[null,null,null,null,"47789"]
[null,null,null,null,"47791"]
[null,null,null,null,"47792"]
[null,null,null,null,"47793"]
[null,null,null,null,"47811"]
[null,null,null,null,"47819"]
[null,null,null,null,"47891"]
[null,null,null,null,"47892"]
[null,null,null,null,"47899"]
[null,null,null,null,"47911"]
[null,null,null,null,"47912"]
[null,null,null,null,"47913"]
[null,null,null,null,"47914"]
[null,null,null,null,"47915"]
[null,null,null,null,"47916"]
[null,null,null,null,"47918"]
[null,null,null,null,"47919"]
[null,null,null,null,"47991"]
[null,null,null,null,"47992"]
[null,null,null,null,"47999"]
[null,null,null,null,"49391"]
[null,null,null,null,"49392"]
[null,null,null,null,"49393"]
[null,null,null,null,"50201"]
[null,null,null,null,"50202"]
[null,null,null,null,"50401"]
[null,null,null,null,"50402"]
[null,null,null,null,"50403"]
[null,null,null,null,"52101"]
[null,null,null,null,"52102"]
[null,null,null,null,"52109"]
[null,null,null,null,"52241"]
[null,null,null,null,"52242"]
[null,null,null,null,"52291"]
[null,null,null,null,"52292"]
[null,null,null,null,"53201"]
[null,null,null,null,"53202"]
[null,null,null,null,"55101"]
[null,null,null,null,"55102"]
[null,null,null,null,"55201"]
[null,null,null,null,"55202"]
[null,null,null,null,"56101"]
[null,null,null,null,"56102"]
[null,null,null,null,"59111"]
[null,null,null,null,"59112"]
[null,null,null,null,"64191"]
[null,null,null,null,"64192"]
[null,null,null,null,"64193"]
[null,null,null,null,"64194"]
[null,null,null,null,"64301"]
[null,null,null,null,"64302"]
[null,null,null,null,"64303"]
[null,null,null,null,"64921"]
[null,null,null,null,"64922"]
[null,null,null,null,"64923"]
[null,null,null,null,"64924"]
[null,null,null,null,"65111"]
[null,null,null,null,"65112"]
[null,null,null,null,"65113"]
[null,null,null,null,"65121"]
[null,null,null,null,"65122"]
[null,null,null,null,"65301"]
[null,null,null,null,"65302"]
[null,null,null,null,"65303"]
[null,null,null,null,"65309"]
[null,null,null,null,"66191"]
[null,null,null,null,"66192"]
[null,null,null,null,"66193"]
[null,null,null,null,"66291"]
[null,null,null,null,"66292"]
[null,null,null,null,"66293"]
[null,null,null,null,"66299"]
[null,null,null,null,"68201"]
[null,null,null,null,"68202"]
[null,null,null,null,"68203"]
[null,null,null,null,"68204"]
[null,null,null,null,"69101"]
[null,null,null,null,"69102"]
[null,null,null,null,"69103"]
[null,null,null,null,"69104"]
[null,null,null,null,"69105"]
[null,null,null,null,"69201"]
[null,null,null,null,"69202"]
[null,null,null,null,"69203"]
[null,null,null,null,"69204"]
[null,null,null,null,"69209"]
[null,null,null,null,"70101"]
[null,null,null,null,"70102"]
[null,null,null,null,"70221"]
[null,null,null,null,"70222"]
[null,null,null,null,"71111"]
[null,null,null,null,"71112"]
[null,null,null,null,"71201"]
[null,null,null,null,"71202"]
[null,null,null,null,"71203"]
[null,null,null,null,"72111"]
[null,null,null,null,"72112"]
[null,null,null,null,"72113"]
[null,null,null,null,"72191"]
[null,null,null,null,"72192"]
[null,null,null,null,"72193"]
[null,null,null,null,"72199"]
[null,null,null,null,"74101"]
[null,null,null,null,"74102"]
[null,null,null,null,"74103"]
[null,null,null,null,"74201"]
[null,null,null,null,"74202"]
[null,null,null,null,"74203"]
[null,null,null,null,"77111"]
[null,null,null,null,"77112"]
[null,null,null,null,"77291"]
[null,null,null,null,"77292"]
[null,null,null,null,"77299"]
[null,null,null,null,"77391"]
[null,null,null,null,"77399"]
[null,null,null,null,"78201"]
[null,null,null,null,"78202"]
[null,null,null,null,"78203"]
[null,null,null,null,"81221"]
[null,null,null,null,"81222"]
[null,null,null,null,"81229"]
[null,null,null,null,"82991"]
[null,null,null,null,"82992"]
[null,null,null,null,"82999"]
[null,null,null,null,"84231"]
[null,null,null,null,"84232"]
[null,null,null,null,"85201"]
[null,null,null,null,"85202"]
[null,null,null,null,"85203"]
[null,null,null,null,"85311"]
[null,null,null,null,"85312"]
[null,null,null,null,"85313"]
[null,null,null,null,"85314"]
[null,null,null,null,"85321"]
[null,null,null,null,"85322"]
[null,null,null,null,"85323"]
[null,null,null,null,"85511"]
[null,null,null,null,"85519"]
[null,null,null,null,"85521"]
[null,null,null,null,"85522"]
[null,null,null,null,"85591"]
[null,null,null,null,"85592"]
[null,null,null,null,"85599"]
[null,null,null,null,"86101"]
[null,null,null,null,"86102"]
[null,null,null,null,"86103"]
[null,null,null,null,"86104"]
[null,null,null,null,"86221"]
[null,null,null,null,"86222"]
[null,null,null,null,"86231"]
[null,null,null,null,"86232"]
[null,null,null,null,"86911"]
[null,null,null,null,"86912"]
[null,null,null,null,"86913"]
[null,null,null,null,"86919"]
[null,null,null,null,"86921"]
[null,null,null,null,"86922"]
[null,null,null,null,"86923"]
[null,null,null,null,"86924"]
[null,null,null,null,"86925"]
[null,null,null,null,"86929"]
[null,null,null,null,"87301"]
[null,null,null,null,"87302"]
[null,null,null,null,"87901"]
[null,null,null,null,"87902"]
[null,null,null,null,"88101"]
[null,null,null,null,"88102"]
[null,null,null,null,"88103"]
[null,null,null,null,"88991"]
[null,null,null,null,"88992"]
[null,null,null,null,"88993"]
[null,null,null,null,"88999"]
[null,null,null,null,"90011"]
[null,null,null,null,"90012"]
[null,null,null,null,"90013"]
[null,null,null,null,"90041"]
[null,null,null,null,"90042"]
[null,null,null,null,"91011"]
[null,null,null,null,"91012"]
[null,null,null,null,"91019"]
[null,null,null,null,"91021"]
[null,null,null,null,"91022"]
[null,null,null,null,"91041"]
[null,null,null,null,"91042"]
[null,null,null,null,"92001"]
[null,null,null,null,"92009"]
[null,null,null,null,"93111"]
[null,null,null,null,"93112"]
[null,null,null,null,"93113"]
[null,null,null,null,"93119"]
[null,null,null,null,"93121"]
[null,null,null,null,"93122"]
[null,null,null,null,"93123"]
[null,null,null,null,"93124"]
[null,null,null,null,"93125"]
[null,null,null,null,"93126"]
[null,null,null,null,"93127"]
[null,null,null,null,"93128"]
[null,null,null,null,"93129"]
[null,null,null,null,"93141"]
[null,null,null,null,"93142"]
[null,null,null,null,"93143"]
[null,null,null,null,"93144"]
[null,null,null,null,"93145"]
[null,null,null,null,"93146"]
[null,null,null,null,"93149"]
[null,null,null,null,"93151"]
[null,null,null,null,"93152"]
[null,null,null,null,"93191"]
[null,null,null,null,"93192"]
[null,null,null,null,"93193"]
[null,null,null,null,"93194"]
[null,null,null,null,"93195"]
[null,null,null,null,"93196"]
[null,null,null,null,"93199"]
[null,null,null,null,"93211"]
[null,null,null,null,"93212"]
[null,null,null,null,"93291"]
[null,null,null,null,"93299"]
[null,null,null,null,"94911"]
[null,null,null,null,"94919"]
[null,null,null,null,"94991"]
[null,null,null,null,"94992"]
[null,null,null,null,"94993"]
[null,null,null,null,"94994"]
[null,null,null,null,"94995"]
[null,null,null,null,"94996"]
[null,null,null,null,"94997"]
[null,null,null,null,"96011"]
[null,null,null,null,"96012"]
[null,null,null,null,"96013"]
[null,null,null,null,"96021"]
[null,null,null,null,"96022"]
[null,null,null,null,"96031"]
[null,null,null,null,"96032"]

{"sheet":"Pre-validation","index":3,"n_rows":102,"n_cols":6,"rows_kept":102,"cut":false,"hidden":true,"merged":[]}
[{"$f":"IF(NOT(Stamdata!H127=\"\"),0,1)+AssertionId(\"existenceAssertion_SigningFinancialStatements_PrtExistence1\")","v":1}]
["KvK: Jaarverantwoording 2023 NLGAAP - micro rechtspersonen - publicatiestukken","valueAssertion_BalanceSheetMicroEntities_PrtFST1SumOfChildrenDParentCredit1","`EquityAndLiabilities` SHOULD be equal to the summation of the underlying values. ","blocking","IF(OR(not(AND(Stamdata!D93=\"\",Stamdata!D94=\"\",Stamdata!D97=\"\")),not(0=0)),IF( Stamdata!D99 = sum(Stamdata!D93,Stamdata!D94,Stamdata!D97),0,1),0)+AssertionId(\"valueAssertion_BalanceSheetMicroEntities_PrtFST1SumOfChildrenDParentCredit1\")","Stamdata!D99"]
["KvK: Jaarverantwoording 2023 NLGAAP - micro rechtspersonen - publicatiestukken","valueAssertion_BalanceSheetMicroEntities_PrtFST1SumOfChildrenDParentCredit1","`EquityAndLiabilities` SHOULD be equal to the summation of the underlying values. ","blocking","IF(OR(not(AND(Stamdata!F93=\"\",Stamdata!F94=\"\",Stamdata!F97=\"\")),not(0=0)),IF( Stamdata!F99 = sum(Stamdata!F93,Stamdata!F94,Stamdata!F97),0,1),0)+AssertionId(\"valueAssertion_BalanceSheetMicroEntities_PrtFST1SumOfChildrenDParentCredit1\")","Stamdata!F99"]
["KvK: Jaarverantwoording 2023 NLGAAP - micro rechtspersonen - publicatiestukken","valueAssertion_BalanceSheetMicroEntities_PrtFST1SumOfChildrenDParentCredit2","`Liabilities` SHOULD be equal to the summation of the underlying values. ","blocking","IF(OR(not(AND(Stamdata!D95=\"\",Stamdata!D96=\"\")),not(0=0)),IF( Stamdata!D97 = sum(Stamdata!D95,Stamdata!D96),0,1),0)+AssertionId(\"valueAssertion_BalanceSheetMicroEntities_PrtFST1SumOfChildrenDParentCredit2\")","Stamdata!D97"]
["KvK: Jaarverantwoording 2023 NLGAAP - micro rechtspersonen - publicatiestukken","valueAssertion_BalanceSheetMicroEntities_PrtFST1SumOfChildrenDParentCredit2","`Liabilities` SHOULD be equal to the summation of the underlying values. ","blocking","IF(OR(not(AND(Stamdata!F95=\"\",Stamdata!F96=\"\")),not(0=0)),IF( Stamdata!F97 = sum(Stamdata!F95,Stamdata!F96),0,1),0)+AssertionId(\"valueAssertion_BalanceSheetMicroEntities_PrtFST1SumOfChildrenDParentCredit2\")","Stamdata!F97"]
["KvK: Jaarverantwoording 2023 NLGAAP - micro rechtspersonen - publicatiestukken","valueAssertion_BalanceSheetMicroEntities_PrtFST1SumOfChildrenDParentDebit1","`AssetsCurrent` SHOULD be equal to the summation of the underlying values. ","blocking","IF(OR(not(0=0),not(AND(Stamdata!D87=\"\",Stamdata!D88=\"\"))),IF( Stamdata!D89 = + sum(Stamdata!D87,Stamdata!D88),0,1),0)+AssertionId(\"valueAssertion_BalanceSheetMicroEntities_PrtFST1SumOfChildrenDParentDebit1\")","Stamdata!D89"]
["KvK: Jaarverantwoording 2023 NLGAAP - micro rechtspersonen - publicatiestukken","valueAssertion_BalanceSheetMicroEntities_PrtFST1SumOfChildrenDParentDebit1","`AssetsCurrent` SHOULD be equal to the summation of the underlying values. ","blocking","IF(OR(not(0=0),not(AND(Stamdata!F87=\"\",Stamdata!F88=\"\"))),IF( Stamdata!F89 = + sum(Stamdata!F87,Stamdata!F88),0,1),0)+AssertionId(\"valueAssertion_BalanceSheetMicroEntities_PrtFST1SumOfChildrenDParentDebit1\")","Stamdata!F89"]
["KvK: Jaarverantwoording 2023 NLGAAP - micro rechtspersonen - publicatiestukken","valueAssertion_BalanceSheetMicroEntities_PrtFST1SumOfChildrenDParentDebit2","`AssetsNoncurrent` SHOULD be equal to the summation of the underlying values. ","blocking","IF(OR(not(0=0),not(AND(Stamdata!D83=\"\",Stamdata!D84=\"\"))),IF( Stamdata!D85 = + sum(Stamdata!D83,Stamdata!D84),0,1),0)+AssertionId(\"valueAssertion_BalanceSheetMicroEntities_PrtFST1SumOfChildrenDParentDebit2\")","Stamdata!D85"]
["KvK: Jaarverantwoording 2023 NLGAAP - micro rechtspersonen - publicatiestukken","valueAssertion_BalanceSheetMicroEntities_PrtFST1SumOfChildrenDParentDebit2","`AssetsNoncurrent` SHOULD be equal to the summation of the underlying values. ","blocking","IF(OR(not(0=0),not(AND(Stamdata!F83=\"\",Stamdata!F84=\"\"))),IF( Stamdata!F85 = + sum(Stamdata!F83,Stamdata!F84),0,1),0)+AssertionId(\"valueAssertion_BalanceSheetMicroEntities_PrtFST1SumOfChildrenDParentDebit2\")","Stamdata!F85"]
["KvK: Jaarverantwoording 2023 NLGAAP - micro rechtspersonen - publicatiestukken","valueAssertion_BalanceSheetMicroEntities_PrtFST1SumOfChildrenDParentDebit3","`Assets` SHOULD be equal to the summation of the underlying values. ","blocking","IF(OR(not(0=0),not(AND(Stamdata!D85=\"\",Stamdata!D89=\"\"))),IF( Stamdata!D91 = + sum(Stamdata!D85,Stamdata!D89),0,1),0)+AssertionId(\"valueAssertion_BalanceSheetMicroEntities_PrtFST1SumOfChildrenDParentDebit3\")","Stamdata!D91"]
["KvK: Jaarverantwoording 2023 NLGAAP - micro rechtspersonen - publicatiestukken","valueAssertion_BalanceSheetMicroEntities_PrtFST1SumOfChildrenDParentDebit3","`Assets` SHOULD be equal to the summation of the underlying values. ","blocking","IF(OR(not(0=0),not(AND(Stamdata!F85=\"\",Stamdata!F89=\"\"))),IF( Stamdata!F91 = + sum(Stamdata!F85,Stamdata!F89),0,1),0)+AssertionId(\"valueAssertion_BalanceSheetMicroEntities_PrtFST1SumOfChildrenDParentDebit3\")","Stamdata!F91"]
["KvK: Jaarverantwoording 2023 NLGAAP - micro rechtspersonen - publicatiestukken","valueAssertion_BalanceSheetMicroEntities_PrtFST101Variable1","`EquityAndLiabilities` SHOULD be equal to + `Assets`. ","blocking","IF(+ Stamdata!D91 = Stamdata!D99 ,0,1)+AssertionId(\"valueAssertion_BalanceSheetMicroEntities_PrtFST101Variable1\")","Stamdata!D91"]
["KvK: Jaarverantwoording 2023 NLGAAP - micro rechtspersonen - publicatiestukken","valueAssertion_BalanceSheetMicroEntities_PrtFST101Variable1","`EquityAndLiabilities` SHOULD be equal to + `Assets`. ","blocking","IF(+ Stamdata!F91 = Stamdata!F99 ,0,1)+AssertionId(\"valueAssertion_BalanceSheetMicroEntities_PrtFST101Variable1\")","Stamdata!F91"]
["KvK: Jaarverantwoording 2023 NLGAAP - micro rechtspersonen - publicatiestukken","existenceAssertion_BalanceSheetMicroEntities_PrtExistence1","`BalanceSheetBeforeAfterAppropriationResults` MUST exist at least once.","blocking","IF(NOT(Stamdata!D81=\"\"),0,1)+AssertionId(\"existenceAssertion_BalanceSheetMicroEntities_PrtExistence1\")","Stamdata!D81"]
["KvK: Jaarverantwoording 2023 NLGAAP - micro rechtspersonen - publicatiestukken","existenceAssertion_BalanceSheetMicroEntities_PrtExistence1","`BalanceSheetBeforeAfterAppropriationResults` MUST exist at least once.","blocking","IF(NOT(Stamdata!F81=\"\"),0,1)+AssertionId(\"existenceAssertion_BalanceSheetMicroEntities_PrtExistence1\")","Stamdata!F81"]
["KvK: Jaarverantwoording 2023 NLGAAP - micro rechtspersonen - publicatiestukken","existenceAssertion_BalanceSheetMicroEntities_PrtOnlyReportFactPeriodEQParam1","`BalanceSheetBeforeAfterAppropriationResults` SHOULD not exist for any period other than the current period.","blocking","IF(NOT(Stamdata!D81=\"\"),0,1)+AssertionId(\"existenceAssertion_BalanceSheetMicroEntities_PrtOnlyReportFactPeriodEQParam1\")","Stamdata!D81"]
["KvK: Jaarverantwoording 2023 NLGAAP - micro rechtspersonen - publicatiestukken","existenceAssertion_BalanceSheetMicroEntities_PrtOnlyReportFactPeriodEQParam1","`BalanceSheetBeforeAfterAppropriationResults` SHOULD not exist for any period other than the current period.","blocking","IF(NOT(Stamdata!F81=\"\"),0,1)+AssertionId(\"existenceAssertion_BalanceSheetMicroEntities_PrtOnlyReportFactPeriodEQParam1\")","Stamdata!F81"]
["KvK: Jaarverantwoording 2023 NLGAAP - micro rechtspersonen - publicatiestukken","valueAssertion_DocumentInformation_PrtDateEarlier24HDateLater1","The date reported for `FinancialReportingPeriodPreviousEndDate` MUST be one day earlier than the date reported for `FinancialReportingPeriodCurrentStartDate`. ","blocking","IF((Stamdata!D59)+ 1 = (Stamdata!D56),0,1)+AssertionId(\"valueAssertion_DocumentInformation_PrtDateEarlier24HDateLater1\")","Stamdata!D56"]
["KvK: Jaarverantwoording 2023 NLGAAP - micro rechtspersonen - publicatiestukken","valueAssertion_DocumentInformation_PrtDateEarlierDateLater1","The date reported for `FinancialReportingPeriodCurrentEndDate` MUST be earlier than the date reported for `DocumentAdoptionDate`. ","blocking","IF(Stamdata!D57 < Stamdata!D68,0,1)+AssertionId(\"valueAssertion_DocumentInformation_PrtDateEarlierDateLater1\")","Stamdata!D68"]
["KvK: Jaarverantwoording 2023 NLGAAP - micro rechtspersonen - publicatiestukken","valueAssertion_DocumentInformation_PrtDateEarlierDateLater2","The date reported for `FinancialReportingPeriodPreviousStartDate` MUST be earlier than the date reported for `FinancialReportingPeriodPreviousEndDate`. ","blocking","IF(Stamdata!D58 < Stamdata!D59,0,1)+AssertionId(\"valueAssertion_DocumentInformation_PrtDateEarlierDateLater2\")","Stamdata!D59"]
["KvK: Jaarverantwoording 2023 NLGAAP - micro rechtspersonen - publicatiestukken","valueAssertion_DocumentInformation_PrtDateEarlierDateLater3","The date reported for `FinancialReportingPeriodCurrentStartDate` MUST be earlier than the date reported for `FinancialReportingPeriodCurrentEndDate`. ","blocking","IF(Stamdata!D56 < Stamdata!D57,0,1)+AssertionId(\"valueAssertion_DocumentInformation_PrtDateEarlierDateLater3\")","Stamdata!D57"]
["KvK: Jaarverantwoording 2023 NLGAAP - micro rechtspersonen - publicatiestukken","valueAssertion_DocumentInformation_PrtDateEarlierEQDateLater1","The date reported for `FinancialStatementsDateOfPreparation` SHOULD be earlier than, or equal to, the date reported for `DocumentAdoptionDate`. ","blocking","IF(Stamdata!D66 <= Stamdata!D68,0,1)+AssertionId(\"valueAssertion_DocumentInformation_PrtDateEarlierEQDateLater1\")","Stamdata!D68"]
["KvK: Jaarverantwoording 2023 NLGAAP - micro rechtspersonen - publicatiestukken","valueAssertion_DocumentInformation_PrtDateEarlierEQYearDateLaterThnValue1","The reported value of `FinancialReportingPeriodDifferentThanAnnualStatus` SHOULD be equal to `Nee`, because the period from `FinancialReportingPeriodCurrentStartDate` to `FinancialReportingPeriodCurrentEndDate` is equal to the standard reporting period of one year. ","blocking","IF(((Stamdata!D56) + 365 - 1) = (Stamdata!D57),IF(Stamdata!D60 = \"Nee\",0,1),0)+AssertionId(\"valueAssertion_DocumentInformation_PrtDateEarlierEQYearDateLaterThnValue1\")","Stamdata!D60"]
["KvK: Jaarverantwoording 2023 NLGAAP - micro rechtspersonen - publicatiestukken","valueAssertion_DocumentInformation_PrtDateEarlierNEYearDateLaterThnValue1","The reported value of `FinancialReportingPeriodDifferentThanAnnualStatus` SHOULD be equal to `Ja`, because the period from `FinancialReportingPeriodCurrentStartDate` to `FinancialReportingPeriodCurrentEndDate` differs from than the standard reporting period of one year. ","blocking","IF(((Stamdata!D56) + 365 - 1) <> (Stamdata!D57),IF(Stamdata!D60 = \"Ja\",0,1),0)+AssertionId(\"valueAssertion_DocumentInformation_PrtDateEarlierNEYearDateLaterThnValue1\")","Stamdata!D60"]
["KvK: Jaarverantwoording 2023 NLGAAP - micro rechtspersonen - publicatiestukken","valueAssertion_DocumentInformation_PrtDateEarlierThanCurrent1","The date reported for `FinancialReportingPeriodCurrentEndDate` SHOULD be earlier than the current date. ","blocking","IF(Stamdata!D57 < NOW,0,1)+AssertionId(\"valueAssertion_DocumentInformation_PrtDateEarlierThanCurrent1\")","Stamdata!D57"]
["KvK: Jaarverantwoording 2023 NLGAAP - micro rechtspersonen - publicatiestukken","valueAssertion_DocumentInformation_PrtDateEarlierThanEQDateCurrent1","The date reported for `DocumentAdoptionDate` SHOULD be earlier than, or equal to, the current date. ","blocking","IF(Stamdata!D68 <= NOW,0,1)+AssertionId(\"valueAssertion_DocumentInformation_PrtDateEarlierThanEQDateCurrent1\")","Stamdata!D68"]
["KvK: Jaarverantwoording 2023 NLGAAP - micro rechtspersonen - publicatiestukken","valueAssertion_DocumentInformation_PrtExistenceThnExistence1","`FinancialReportingPeriodPreviousStartDate` SHOULD exist at least once within the same context, because `FinancialReportingPeriodPreviousEndDate` is reported. ","blocking","IF(not(Stamdata!D58=\"\"),0,1)+AssertionId(\"valueAssertion_DocumentInformation_PrtExistenceThnExistence1\")","Stamdata!D58"]
["KvK: Jaarverantwoording 2023 NLGAAP - micro rechtspersonen - publicatiestukken","valueAssertion_DocumentInformation_PrtExistenceThnExistence2","`FinancialReportingPeriodPreviousEndDate` SHOULD exist at least once within the same context, because `FinancialReportingPeriodPreviousStartDate` is reported. ","blocking","IF(not(Stamdata!D59=\"\"),0,1)+AssertionId(\"valueAssertion_DocumentInformation_PrtExistenceThnExistence2\")","Stamdata!D59"]
["KvK: Jaarverantwoording 2023 NLGAAP - micro rechtspersonen - publicatiestukken","valueAssertion_DocumentInformation_PrtValueThnExistence1","`FinancialReportingPeriodDifferentThanAnnualReasonDescription` SHOULD exist at least once, because the reported value of `FinancialReportingPeriodDifferentThanAnnualStatus` is equal to `Ja`. ","blocking","IF(Stamdata!D60 = \"Ja\",IF(not(Stamdata!D61=\"\"),0,1),0)+AssertionId(\"valueAssertion_DocumentInformation_PrtValueThnExistence1\")","Stamdata!D61"]
["KvK: Jaarverantwoording 2023 NLGAAP - micro rechtspersonen - publicatiestukken","valueAssertion_DocumentInformation_PrtValueThnExistence2","`FinancialReportingPeriodDifferentThanAnnualImpactComparatives` SHOULD exist at least once, because the reported value of `FinancialReportingPeriodDifferentThanAnnualStatus` is equal to `Ja`. ","blocking","IF(Stamdata!D60 = \"Ja\",IF(not(Stamdata!D62=\"\"),0,1),0)+AssertionId(\"valueAssertion_DocumentInformation_PrtValueThnExistence2\")","Stamdata!D62"]
["KvK: Jaarverantwoording 2023 NLGAAP - micro rechtspersonen - publicatiestukken","valueAssertion_DocumentInformation_PrtValueThnExistence3","`DocumentAdoptionDate` MUST exist at least once, because the reported value of `DocumentAdoptionStatus` is equal to `Ja`. ","blocking","IF(Stamdata!D67 = \"Ja\",IF(not(Stamdata!D68=\"\"),0,1),0)+AssertionId(\"valueAssertion_DocumentInformation_PrtValueThnExistence3\")","Stamdata!D68"]
["KvK: Jaarverantwoording 2023 NLGAAP - micro rechtspersonen - publicatiestukken","valueAssertion_DocumentInformation_PrtValueThnExistence4","`DocumentResubmissionDueToTechnicalAndOrProcesRelatedInaccuraciesExplanation` MUST exist at least once, because the reported value of `DocumentResubmissionDueToTechnicalAndOrProcesRelatedInaccuracies` is equal to `Ja`. ","blocking","IF(Stamdata!D71 = \"Ja\",IF(not(Stamdata!D72=\"\"),0,1),0)+AssertionId(\"valueAssertion_DocumentInformation_PrtValueThnExistence4\")","Stamdata!D72"]
["KvK: Jaarverantwoording 2023 NLGAAP - micro rechtspersonen - publicatiestukken","valueAssertion_DocumentInformation_PrtValueThnExistence5","`DocumentResubmissionDueToUnsurmountableInaccuraciesExplanation` MUST exist at least once, because the reported value of `DocumentResubmissionDueToUnsurmountableInaccuracies` is equal to `Ja`. ","blocking","IF(Stamdata!D69 = \"Ja\",IF(not(Stamdata!D70=\"\"),0,1),0)+AssertionId(\"valueAssertion_DocumentInformation_PrtValueThnExistence5\")","Stamdata!D70"]
["KvK: Jaarverantwoording 2023 NLGAAP - micro rechtspersonen - publicatiestukken","valueAssertion_DocumentInformation_PrtValueThnNoExistence1","`FinancialReportingPeriodDifferentThanAnnualImpactComparatives` SHOULD NOT be reported, because the reported value of `FinancialReportingPeriodDifferentThanAnnualStatus` is equal to `Nee`. ","blocking","IF(Stamdata!D60 = \"Nee\",IF(Stamdata!D62=\"\",0,1),0)+AssertionId(\"valueAssertion_DocumentInformation_PrtValueThnNoExistence1\")","Stamdata!D62"]
["KvK: Jaarverantwoording 2023 NLGAAP - micro rechtspersonen - publicatiestukken","valueAssertion_DocumentInformation_PrtValueThnNoExistence2","`DocumentAdoptionDate` MUST NOT be reported, because the reported value of `DocumentAdoptionStatus` is equal to `Nee`. ","blocking","IF(Stamdata!D67 = \"Nee\",IF(Stamdata!D68=\"\",0,1),0)+AssertionId(\"valueAssertion_DocumentInformation_PrtValueThnNoExistence2\")","Stamdata!D68"]
["KvK: Jaarverantwoording 2023 NLGAAP - micro rechtspersonen - publicatiestukken","valueAssertion_DocumentInformation_PrtValueThnNoExistence3","`FinancialReportingPeriodDifferentThanAnnualReasonDescription` SHOULD NOT be reported, because the reported value of `FinancialReportingPeriodDifferentThanAnnualStatus` is equal to `Nee`. ","blocking","IF(Stamdata!D60 = \"Nee\",IF(Stamdata!D61=\"\",0,1),0)+AssertionId(\"valueAssertion_DocumentInformation_PrtValueThnNoExistence3\")","Stamdata!D61"]
["KvK: Jaarverantwoording 2023 NLGAAP - micro rechtspersonen - publicatiestukken","existenceAssertion_DocumentInformation_PrtExistOnce1","`EmailAddressFull` MUST exist once.","blocking","IF(NOT(Stamdata!D73=\"\"),0,1)+AssertionId(\"existenceAssertion_DocumentInformation_PrtExistOnce1\")","Stamdata!D73"]
["KvK: Jaarverantwoording 2023 NLGAAP - micro rechtspersonen - publicatiestukken","existenceAssertion_DocumentInformation_PrtExistOnce3","`FinancialReportingPeriodCurrentEndDate` MUST exist once.","blocking","IF(NOT(Stamdata!D57=\"\"),0,1)+AssertionId(\"existenceAssertion_DocumentInformation_PrtExistOnce3\")","Stamdata!D57"]
["KvK: Jaarverantwoording 2023 NLGAAP - micro rechtspersonen - publicatiestukken","existenceAssertion_DocumentInformation_PrtExistOnce4","`DocumentPresentationCurrency` MUST exist once.","blocking","IF(NOT(Stamdata!D64=\"\"),0,1)+AssertionId(\"existenceAssertion_DocumentInformation_PrtExistOnce4\")","Stamdata!D64"]
["KvK: Jaarverantwoording 2023 NLGAAP - micro rechtspersonen - publicatiestukken","existenceAssertion_DocumentInformation_PrtExistOnce5","`FinancialReportingPeriodDifferentThanAnnualStatus` MUST exist once.","blocking","IF(NOT(Stamdata!D60=\"\"),0,1)+AssertionId(\"existenceAssertion_DocumentInformation_PrtExistOnce5\")","Stamdata!D60"]
["KvK: Jaarverantwoording 2023 NLGAAP - micro rechtspersonen - publicatiestukken","existenceAssertion_DocumentInformation_PrtExistOnce6","`DocumentAdoptionStatus` MUST exist once.","blocking","IF(NOT(Stamdata!D67=\"\"),0,1)+AssertionId(\"existenceAssertion_DocumentInformation_PrtExistOnce6\")","Stamdata!D67"]
["KvK: Jaarverantwoording 2023 NLGAAP - micro rechtspersonen - publicatiestukken","existenceAssertion_DocumentInformation_PrtExistOnce8","`FinancialReportingPeriodCurrentStartDate` MUST exist once.","blocking","IF(NOT(Stamdata!D56=\"\"),0,1)+AssertionId(\"existenceAssertion_DocumentInformation_PrtExistOnce8\")","Stamdata!D56"]
["KvK: Jaarverantwoording 2023 NLGAAP - micro rechtspersonen - publicatiestukken","existenceAssertion_DocumentInformation_PrtExistOnce10","`FinancialStatementsDateOfPreparation` MUST exist once.","blocking","IF(NOT(Stamdata!D66=\"\"),0,1)+AssertionId(\"existenceAssertion_DocumentInformation_PrtExistOnce10\")","Stamdata!D66"]
["KvK: Jaarverantwoording 2023 NLGAAP - micro rechtspersonen - publicatiestukken","existenceAssertion_DocumentInformation_PrtExistOnceMax1","`FinancialReportingPeriodPreviousEndDate` MUST not exist or at most once.","blocking","IF(NOT(Stamdata!D59=\"\"),0,1)+AssertionId(\"existenceAssertion_DocumentInformation_PrtExistOnceMax1\")","Stamdata!D59"]
["KvK: Jaarverantwoording 2023 NLGAAP - micro rechtspersonen - publicatiestukken","existenceAssertion_DocumentInformation_PrtExistOnceMax2","`FinancialReportingPeriodPreviousStartDate` MUST not exist or at most once.","blocking","IF(NOT(Stamdata!D58=\"\"),0,1)+AssertionId(\"existenceAssertion_DocumentInformation_PrtExistOnceMax2\")","Stamdata!D58"]
["KvK: Jaarverantwoording 2023 NLGAAP - micro rechtspersonen - publicatiestukken","existenceAssertion_DocumentInformation_PrtExistOnce2","`BasisOfPreparation` MUST exist once.","blocking","IF(NOT(Stamdata!D63=\"\"),0,1)+AssertionId(\"existenceAssertion_DocumentInformation_PrtExistOnce2\")","Stamdata!D63"]
["KvK: Jaarverantwoording 2023 NLGAAP - micro rechtspersonen - publicatiestukken","valueAssertion_EntityAddress_PrtExistenceThnNoExistenceCovA1","`DescriptionLocationNL` MUST NOT be reported, because `PlaceOfResidenceAbroad` is reported. ","blocking","IF(0=0,0,1)+AssertionId(\"valueAssertion_EntityAddress_PrtExistenceThnNoExistenceCovA1\")","Stamdata!D36"]
["KvK: Jaarverantwoording 2023 NLGAAP - micro rechtspersonen - publicatiestukken","valueAssertion_EntityAddress_PrtExistenceThnNoExistenceCovA2","`StreetNameNL` MUST NOT be reported, because `PlaceOfResidenceAbroad` is reported. ","blocking","IF(0=0,0,1)+AssertionId(\"valueAssertion_EntityAddress_PrtExistenceThnNoExistenceCovA2\")","Stamdata!D37"]
["KvK: Jaarverantwoording 2023 NLGAAP - micro rechtspersonen - publicatiestukken","valueAssertion_EntityAddress_PrtExistenceThnNoExistenceCovA3","`HouseNumberNL` MUST NOT be reported, because `PlaceOfResidenceAbroad` is reported. ","blocking","IF(0=0,0,1)+AssertionId(\"valueAssertion_EntityAddress_PrtExistenceThnNoExistenceCovA3\")","Stamdata!D38"]
["KvK: Jaarverantwoording 2023 NLGAAP - micro rechtspersonen - publicatiestukken","valueAssertion_EntityAddress_PrtExistenceThnNoExistenceCovA4","`HouseNumberAddition` MUST NOT be reported, because `PlaceOfResidenceAbroad` is reported. ","blocking","IF(0=0,0,1)+AssertionId(\"valueAssertion_EntityAddress_PrtExistenceThnNoExistenceCovA4\")","Stamdata!D39"]
["KvK: Jaarverantwoording 2023 NLGAAP - micro rechtspersonen - publicatiestukken","valueAssertion_EntityAddress_PrtExistenceThnNoExistenceCovA5","`POBoxNumber` MUST NOT be reported, because `PlaceOfResidenceAbroad` is reported. ","blocking","IF(0=0,0,1)+AssertionId(\"valueAssertion_EntityAddress_PrtExistenceThnNoExistenceCovA5\")","Stamdata!D40"]
["KvK: Jaarverantwoording 2023 NLGAAP - micro rechtspersonen - publicatiestukken","valueAssertion_EntityAddress_PrtExistenceThnNoExistenceCovA6","`DescriptionLocationAbroad` MUST NOT be reported, because `PlaceOfResidenceNL` is reported. ","blocking","IF(0=0,0,1)+AssertionId(\"valueAssertion_EntityAddress_PrtExistenceThnNoExistenceCovA6\")","Stamdata!D43"]
["KvK: Jaarverantwoording 2023 NLGAAP - micro rechtspersonen - publicatiestukken","valueAssertion_EntityAddress_PrtExistenceThnNoExistenceCovA7","`StreetNameAbroad` MUST NOT be reported, because `PlaceOfResidenceNL` is reported. ","blocking","IF(0=0,0,1)+AssertionId(\"valueAssertion_EntityAddress_PrtExistenceThnNoExistenceCovA7\")","Stamdata!D44"]
["KvK: Jaarverantwoording 2023 NLGAAP - micro rechtspersonen - publicatiestukken","valueAssertion_EntityAddress_PrtExistenceThnNoExistenceCovA8","`HouseNumberAbroad` MUST NOT be reported, because `PlaceOfResidenceNL` is reported. ","blocking","IF(0=0,0,1)+AssertionId(\"valueAssertion_EntityAddress_PrtExistenceThnNoExistenceCovA8\")","Stamdata!D45"]
["KvK: Jaarverantwoording 2023 NLGAAP - micro rechtspersonen - publicatiestukken","valueAssertion_EntityAddress_PrtExistenceThnNoExistenceCovA9","`PostalCodeAbroad` MUST NOT be reported, because `PlaceOfResidenceNL` is reported. ","blocking","IF(0=0,0,1)+AssertionId(\"valueAssertion_EntityAddress_PrtExistenceThnNoExistenceCovA9\")","Stamdata!D46"]
["KvK: Jaarverantwoording 2023 NLGAAP - micro rechtspersonen - publicatiestukken","existenceAssertion_EntityAddress_PrtExist02XOR1","`PlaceOfResidenceNL` or `PlaceOfResidenceAbroad` MUST exist once.","blocking","IF(OR(NOT(Stamdata!D42=\"\"),NOT(Stamdata!D47=\"\")),0,1)+AssertionId(\"existenceAssertion_EntityAddress_PrtExist02XOR1\")","Stamdata!D42,Stamdata!D47"]
["KvK: Jaarverantwoording 2023 NLGAAP - micro rechtspersonen - publicatiestukken","existenceAssertion_EntityAddress_PrtExist02XOR2","`PostalCodeNL` or `PlaceOfResidenceAbroad` MUST exist once.","blocking","IF(OR(NOT(Stamdata!D41=\"\"),NOT(Stamdata!D47=\"\")),0,1)+AssertionId(\"existenceAssertion_EntityAddress_PrtExist02XOR2\")","Stamdata!D41,Stamdata!D47"]
["KvK: Jaarverantwoording 2023 NLGAAP - micro rechtspersonen - publicatiestukken","existenceAssertion_EntityInformation_PrtExistOnce5","`LegalEntityLegalForm` MUST exist once.","blocking","IF(NOT(Stamdata!D25=\"\"),0,1)+AssertionId(\"existenceAssertion_EntityInformation_PrtExistOnce5\")","Stamdata!D25"]
["KvK: Jaarverantwoording 2023 NLGAAP - micro rechtspersonen - publicatiestukken","existenceAssertion_EntityInformation_PrtExistOnce2","`LegalEntityRegisteredOffice` MUST exist once.","blocking","IF(NOT(Stamdata!D26=\"\"),0,1)+AssertionId(\"existenceAssertion_EntityInformation_PrtExistOnce2\")","Stamdata!D26"]
["KvK: Jaarverantwoording 2023 NLGAAP - micro rechtspersonen - publicatiestukken","existenceAssertion_EntityInformation_PrtExistOnce3","`LegalEntityName` MUST exist once.","blocking","IF(NOT(Stamdata!D24=\"\"),0,1)+AssertionId(\"existenceAssertion_EntityInformation_PrtExistOnce3\")","Stamdata!D24"]
["KvK: Jaarverantwoording 2023 NLGAAP - micro rechtspersonen - publicatiestukken","existenceAssertion_EntityInformation_PrtExistOnce4","`ChamberOfCommerceRegistrationNumber` MUST exist once.","blocking","IF(NOT(Stamdata!D27=\"\"),0,1)+AssertionId(\"existenceAssertion_EntityInformation_PrtExistOnce4\")","Stamdata!D27"]
["KvK: Jaarverantwoording 2023 NLGAAP - micro rechtspersonen - publicatiestukken","existenceAssertion_EntityInformation_PrtExistOnce8","`LegalSizeCriteriaClassificationMicro` MUST exist once.","blocking","IF(NOT(Stamdata!D29=\"\"),0,1)+AssertionId(\"existenceAssertion_EntityInformation_PrtExistOnce8\")","Stamdata!D29"]
["KvK: Jaarverantwoording 2023 NLGAAP - micro rechtspersonen - publicatiestukken","valueAssertion_SigningFinancialStatements_PrtDateEarlierThanEQDateCurrent1","The date reported for `SignatureManagingSupervisoryDirectorsDate` SHOULD be earlier than, or equal to, the current date. ","non-blocking","IF(Stamdata!D127 <= NOW,0,1)+AssertionId(\"valueAssertion_SigningFinancialStatements_PrtDateEarlierThanEQDateCurrent1\")","Stamdata!D127"]
["KvK: Jaarverantwoording 2023 NLGAAP - micro rechtspersonen - publicatiestukken","valueAssertion_SigningFinancialStatements_PrtDateEarlierThanEQDateCurrent1","The date reported for `SignatureManagingSupervisoryDirectorsDate` SHOULD be earlier than, or equal to, the current date. ","non-blocking","IF(Stamdata!E127 <= NOW,0,1)+AssertionId(\"valueAssertion_SigningFinancialStatements_PrtDateEarlierThanEQDateCurrent1\")","Stamdata!E127"]
["KvK: Jaarverantwoording 2023 NLGAAP - micro rechtspersonen - publicatiestukken","valueAssertion_SigningFinancialStatements_PrtDateEarlierThanEQDateCurrent1","The date reported for `SignatureManagingSupervisoryDirectorsDate` SHOULD be earlier than, or equal to, the current date. ","non-blocking","IF(Stamdata!F127 <= NOW,0,1)+AssertionId(\"valueAssertion_SigningFinancialStatements_PrtDateEarlierThanEQDateCurrent1\")","Stamdata!F127"]
["KvK: Jaarverantwoording 2023 NLGAAP - micro rechtspersonen - publicatiestukken","valueAssertion_SigningFinancialStatements_PrtDateEarlierThanEQDateCurrent1","The date reported for `SignatureManagingSupervisoryDirectorsDate` SHOULD be earlier than, or equal to, the current date. ","non-blocking","IF(Stamdata!G127 <= NOW,0,1)+AssertionId(\"valueAssertion_SigningFinancialStatements_PrtDateEarlierThanEQDateCurrent1\")","Stamdata!G127"]
["KvK: Jaarverantwoording 2023 NLGAAP - micro rechtspersonen - publicatiestukken","valueAssertion_SigningFinancialStatements_PrtDateEarlierThanEQDateCurrent1","The date reported for `SignatureManagingSupervisoryDirectorsDate` SHOULD be earlier than, or equal to, the current date. ","non-blocking","IF(Stamdata!H127 <= NOW,0,1)+AssertionId(\"valueAssertion_SigningFinancialStatements_PrtDateEarlierThanEQDateCurrent1\")","Stamdata!H127"]
["KvK: Jaarverantwoording 2023 NLGAAP - micro rechtspersonen - publicatiestukken","valueAssertion_SigningFinancialStatements_PrtValueThnExistence1","`SignatureManagingSupervisoryDirectorsDate` SHOULD exist at least once, because the reported value of `DirectorSignedStatus` is equal to `Ja`. ","non-blocking","IF(Stamdata!D128 = \"Ja\",IF(not(Stamdata!D127=\"\"),0,1),0)+AssertionId(\"valueAssertion_SigningFinancialStatements_PrtValueThnExistence1\")","Stamdata!D127"]
["KvK: Jaarverantwoording 2023 NLGAAP - micro rechtspersonen - publicatiestukken","valueAssertion_SigningFinancialStatements_PrtValueThnExistence1","`SignatureManagingSupervisoryDirectorsDate` SHOULD exist at least once, because the reported value of `DirectorSignedStatus` is equal to `Ja`. ","non-blocking","IF(Stamdata!E128 = \"Ja\",IF(not(Stamdata!E127=\"\"),0,1),0)+AssertionId(\"valueAssertion_SigningFinancialStatements_PrtValueThnExistence1\")","Stamdata!E127"]
["KvK: Jaarverantwoording 2023 NLGAAP - micro rechtspersonen - publicatiestukken","valueAssertion_SigningFinancialStatements_PrtValueThnExistence1","`SignatureManagingSupervisoryDirectorsDate` SHOULD exist at least once, because the reported value of `DirectorSignedStatus` is equal to `Ja`. ","non-blocking","IF(Stamdata!F128 = \"Ja\",IF(not(Stamdata!F127=\"\"),0,1),0)+AssertionId(\"valueAssertion_SigningFinancialStatements_PrtValueThnExistence1\")","Stamdata!F127"]
["KvK: Jaarverantwoording 2023 NLGAAP - micro rechtspersonen - publicatiestukken","valueAssertion_SigningFinancialStatements_PrtValueThnExistence1","`SignatureManagingSupervisoryDirectorsDate` SHOULD exist at least once, because the reported value of `DirectorSignedStatus` is equal to `Ja`. ","non-blocking","IF(Stamdata!G128 = \"Ja\",IF(not(Stamdata!G127=\"\"),0,1),0)+AssertionId(\"valueAssertion_SigningFinancialStatements_PrtValueThnExistence1\")","Stamdata!G127"]
["KvK: Jaarverantwoording 2023 NLGAAP - micro rechtspersonen - publicatiestukken","valueAssertion_SigningFinancialStatements_PrtValueThnExistence1","`SignatureManagingSupervisoryDirectorsDate` SHOULD exist at least once, because the reported value of `DirectorSignedStatus` is equal to `Ja`. ","non-blocking","IF(Stamdata!H128 = \"Ja\",IF(not(Stamdata!H127=\"\"),0,1),0)+AssertionId(\"valueAssertion_SigningFinancialStatements_PrtValueThnExistence1\")","Stamdata!H127"]
["KvK: Jaarverantwoording 2023 NLGAAP - micro rechtspersonen - publicatiestukken","valueAssertion_SigningFinancialStatements_PrtValueThnExistence2","`SignatureManagingSupervisoryDirectorsLocation` SHOULD exist at least once, because the reported value of `DirectorSignedStatus` is equal to `Ja`. ","non-blocking","IF(Stamdata!D128 = \"Ja\",IF(not(Stamdata!D126=\"\"),0,1),0)+AssertionId(\"valueAssertion_SigningFinancialStatements_PrtValueThnExistence2\")","Stamdata!D126"]
["KvK: Jaarverantwoording 2023 NLGAAP - micro rechtspersonen - publicatiestukken","valueAssertion_SigningFinancialStatements_PrtValueThnExistence2","`SignatureManagingSupervisoryDirectorsLocation` SHOULD exist at least once, because the reported value of `DirectorSignedStatus` is equal to `Ja`. ","non-blocking","IF(Stamdata!E128 = \"Ja\",IF(not(Stamdata!E126=\"\"),0,1),0)+AssertionId(\"valueAssertion_SigningFinancialStatements_PrtValueThnExistence2\")","Stamdata!E126"]
["KvK: Jaarverantwoording 2023 NLGAAP - micro rechtspersonen - publicatiestukken","valueAssertion_SigningFinancialStatements_PrtValueThnExistence2","`SignatureManagingSupervisoryDirectorsLocation` SHOULD exist at least once, because the reported value of `DirectorSignedStatus` is equal to `Ja`. ","non-blocking","IF(Stamdata!F128 = \"Ja\",IF(not(Stamdata!F126=\"\"),0,1),0)+AssertionId(\"valueAssertion_SigningFinancialStatements_PrtValueThnExistence2\")","Stamdata!F126"]
["KvK: Jaarverantwoording 2023 NLGAAP - micro rechtspersonen - publicatiestukken","valueAssertion_SigningFinancialStatements_PrtValueThnExistence2","`SignatureManagingSupervisoryDirectorsLocation` SHOULD exist at least once, because the reported value of `DirectorSignedStatus` is equal to `Ja`. ","non-blocking","IF(Stamdata!G128 = \"Ja\",IF(not(Stamdata!G126=\"\"),0,1),0)+AssertionId(\"valueAssertion_SigningFinancialStatements_PrtValueThnExistence2\")","Stamdata!G126"]
["KvK: Jaarverantwoording 2023 NLGAAP - micro rechtspersonen - publicatiestukken","valueAssertion_SigningFinancialStatements_PrtValueThnExistence2","`SignatureManagingSupervisoryDirectorsLocation` SHOULD exist at least once, because the reported value of `DirectorSignedStatus` is equal to `Ja`. ","non-blocking","IF(Stamdata!H128 = \"Ja\",IF(not(Stamdata!H126=\"\"),0,1),0)+AssertionId(\"valueAssertion_SigningFinancialStatements_PrtValueThnExistence2\")","Stamdata!H126"]
["KvK: Jaarverantwoording 2023 NLGAAP - micro rechtspersonen - publicatiestukken","valueAssertion_SigningFinancialStatements_PrtValueThnExistence3","`DirectorReasonNoSignature` SHOULD exist at least once, because the reported value of `DirectorSignedStatus` is equal to `Nee`. ","non-blocking","IF(Stamdata!D128 = \"Nee\",IF(not(Stamdata!D129=\"\"),0,1),0)+AssertionId(\"valueAssertion_SigningFinancialStatements_PrtValueThnExistence3\")","Stamdata!D129"]
["KvK: Jaarverantwoording 2023 NLGAAP - micro rechtspersonen - publicatiestukken","valueAssertion_SigningFinancialStatements_PrtValueThnExistence3","`DirectorReasonNoSignature` SHOULD exist at least once, because the reported value of `DirectorSignedStatus` is equal to `Nee`. ","non-blocking","IF(Stamdata!E128 = \"Nee\",IF(not(Stamdata!E129=\"\"),0,1),0)+AssertionId(\"valueAssertion_SigningFinancialStatements_PrtValueThnExistence3\")","Stamdata!E129"]
["KvK: Jaarverantwoording 2023 NLGAAP - micro rechtspersonen - publicatiestukken","valueAssertion_SigningFinancialStatements_PrtValueThnExistence3","`DirectorReasonNoSignature` SHOULD exist at least once, because the reported value of `DirectorSignedStatus` is equal to `Nee`. ","non-blocking","IF(Stamdata!F128 = \"Nee\",IF(not(Stamdata!F129=\"\"),0,1),0)+AssertionId(\"valueAssertion_SigningFinancialStatements_PrtValueThnExistence3\")","Stamdata!F129"]
["KvK: Jaarverantwoording 2023 NLGAAP - micro rechtspersonen - publicatiestukken","valueAssertion_SigningFinancialStatements_PrtValueThnExistence3","`DirectorReasonNoSignature` SHOULD exist at least once, because the reported value of `DirectorSignedStatus` is equal to `Nee`. ","non-blocking","IF(Stamdata!G128 = \"Nee\",IF(not(Stamdata!G129=\"\"),0,1),0)+AssertionId(\"valueAssertion_SigningFinancialStatements_PrtValueThnExistence3\")","Stamdata!G129"]
["KvK: Jaarverantwoording 2023 NLGAAP - micro rechtspersonen - publicatiestukken","valueAssertion_SigningFinancialStatements_PrtValueThnExistence3","`DirectorReasonNoSignature` SHOULD exist at least once, because the reported value of `DirectorSignedStatus` is equal to `Nee`. ","non-blocking","IF(Stamdata!H128 = \"Nee\",IF(not(Stamdata!H129=\"\"),0,1),0)+AssertionId(\"valueAssertion_SigningFinancialStatements_PrtValueThnExistence3\")","Stamdata!H129"]
["KvK: Jaarverantwoording 2023 NLGAAP - micro rechtspersonen - publicatiestukken","valueAssertion_SigningFinancialStatements_PrtValueThnNoExistence1","`SignatureManagingSupervisoryDirectorsDate` SHOULD NOT be reported, because the reported value of `DirectorSignedStatus` is equal to `Nee`. ","non-blocking","IF(Stamdata!D128 = \"Nee\",IF(Stamdata!D127=\"\",0,1),0)+AssertionId(\"valueAssertion_SigningFinancialStatements_PrtValueThnNoExistence1\")","Stamdata!D127"]
["KvK: Jaarverantwoording 2023 NLGAAP - micro rechtspersonen - publicatiestukken","valueAssertion_SigningFinancialStatements_PrtValueThnNoExistence1","`SignatureManagingSupervisoryDirectorsDate` SHOULD NOT be reported, because the reported value of `DirectorSignedStatus` is equal to `Nee`. ","non-blocking","IF(Stamdata!E128 = \"Nee\",IF(Stamdata!E127=\"\",0,1),0)+AssertionId(\"valueAssertion_SigningFinancialStatements_PrtValueThnNoExistence1\")","Stamdata!E127"]
["KvK: Jaarverantwoording 2023 NLGAAP - micro rechtspersonen - publicatiestukken","valueAssertion_SigningFinancialStatements_PrtValueThnNoExistence1","`SignatureManagingSupervisoryDirectorsDate` SHOULD NOT be reported, because the reported value of `DirectorSignedStatus` is equal to `Nee`. ","non-blocking","IF(Stamdata!F128 = \"Nee\",IF(Stamdata!F127=\"\",0,1),0)+AssertionId(\"valueAssertion_SigningFinancialStatements_PrtValueThnNoExistence1\")","Stamdata!F127"]
["KvK: Jaarverantwoording 2023 NLGAAP - micro rechtspersonen - publicatiestukken","valueAssertion_SigningFinancialStatements_PrtValueThnNoExistence1","`SignatureManagingSupervisoryDirectorsDate` SHOULD NOT be reported, because the reported value of `DirectorSignedStatus` is equal to `Nee`. ","non-blocking","IF(Stamdata!G128 = \"Nee\",IF(Stamdata!G127=\"\",0,1),0)+AssertionId(\"valueAssertion_SigningFinancialStatements_PrtValueThnNoExistence1\")","Stamdata!G127"]
["KvK: Jaarverantwoording 2023 NLGAAP - micro rechtspersonen - publicatiestukken","valueAssertion_SigningFinancialStatements_PrtValueThnNoExistence1","`SignatureManagingSupervisoryDirectorsDate` SHOULD NOT be reported, because the reported value of `DirectorSignedStatus` is equal to `Nee`. ","non-blocking","IF(Stamdata!H128 = \"Nee\",IF(Stamdata!H127=\"\",0,1),0)+AssertionId(\"valueAssertion_SigningFinancialStatements_PrtValueThnNoExistence1\")","Stamdata!H127"]
["KvK: Jaarverantwoording 2023 NLGAAP - micro rechtspersonen - publicatiestukken","valueAssertion_SigningFinancialStatements_PrtValueThnNoExistence2","`DirectorReasonNoSignature` SHOULD NOT be reported, because the reported value of `DirectorSignedStatus` is equal to `Ja`. ","non-blocking","IF(Stamdata!D128 = \"Ja\",IF(Stamdata!D129=\"\",0,1),0)+AssertionId(\"valueAssertion_SigningFinancialStatements_PrtValueThnNoExistence2\")","Stamdata!D129"]
["KvK: Jaarverantwoording 2023 NLGAAP - micro rechtspersonen - publicatiestukken","valueAssertion_SigningFinancialStatements_PrtValueThnNoExistence2","`DirectorReasonNoSignature` SHOULD NOT be reported, because the reported value of `DirectorSignedStatus` is equal to `Ja`. ","non-blocking","IF(Stamdata!E128 = \"Ja\",IF(Stamdata!E129=\"\",0,1),0)+AssertionId(\"valueAssertion_SigningFinancialStatements_PrtValueThnNoExistence2\")","Stamdata!E129"]
["KvK: Jaarverantwoording 2023 NLGAAP - micro rechtspersonen - publicatiestukken","valueAssertion_SigningFinancialStatements_PrtValueThnNoExistence2","`DirectorReasonNoSignature` SHOULD NOT be reported, because the reported value of `DirectorSignedStatus` is equal to `Ja`. ","non-blocking","IF(Stamdata!F128 = \"Ja\",IF(Stamdata!F129=\"\",0,1),0)+AssertionId(\"valueAssertion_SigningFinancialStatements_PrtValueThnNoExistence2\")","Stamdata!F129"]
["KvK: Jaarverantwoording 2023 NLGAAP - micro rechtspersonen - publicatiestukken","valueAssertion_SigningFinancialStatements_PrtValueThnNoExistence2","`DirectorReasonNoSignature` SHOULD NOT be reported, because the reported value of `DirectorSignedStatus` is equal to `Ja`. ","non-blocking","IF(Stamdata!G128 = \"Ja\",IF(Stamdata!G129=\"\",0,1),0)+AssertionId(\"valueAssertion_SigningFinancialStatements_PrtValueThnNoExistence2\")","Stamdata!G129"]
["KvK: Jaarverantwoording 2023 NLGAAP - micro rechtspersonen - publicatiestukken","valueAssertion_SigningFinancialStatements_PrtValueThnNoExistence2","`DirectorReasonNoSignature` SHOULD NOT be reported, because the reported value of `DirectorSignedStatus` is equal to `Ja`. ","non-blocking","IF(Stamdata!H128 = \"Ja\",IF(Stamdata!H129=\"\",0,1),0)+AssertionId(\"valueAssertion_SigningFinancialStatements_PrtValueThnNoExistence2\")","Stamdata!H129"]
["KvK: Jaarverantwoording 2023 NLGAAP - micro rechtspersonen - publicatiestukken","valueAssertion_SigningFinancialStatements_PrtValueThnNoExistence3","`SignatureManagingSupervisoryDirectorsLocation` SHOULD NOT be reported, because the reported value of `DirectorSignedStatus` is equal to `Nee`. ","non-blocking","IF(Stamdata!D128 = \"Nee\",IF(Stamdata!D126=\"\",0,1),0)+AssertionId(\"valueAssertion_SigningFinancialStatements_PrtValueThnNoExistence3\")","Stamdata!D126"]
["KvK: Jaarverantwoording 2023 NLGAAP - micro rechtspersonen - publicatiestukken","valueAssertion_SigningFinancialStatements_PrtValueThnNoExistence3","`SignatureManagingSupervisoryDirectorsLocation` SHOULD NOT be reported, because the reported value of `DirectorSignedStatus` is equal to `Nee`. ","non-blocking","IF(Stamdata!E128 = \"Nee\",IF(Stamdata!E126=\"\",0,1),0)+AssertionId(\"valueAssertion_SigningFinancialStatements_PrtValueThnNoExistence3\")","Stamdata!E126"]
["KvK: Jaarverantwoording 2023 NLGAAP - micro rechtspersonen - publicatiestukken","valueAssertion_SigningFinancialStatements_PrtValueThnNoExistence3","`SignatureManagingSupervisoryDirectorsLocation` SHOULD NOT be reported, because the reported value of `DirectorSignedStatus` is equal to `Nee`. ","non-blocking","IF(Stamdata!F128 = \"Nee\",IF(Stamdata!F126=\"\",0,1),0)+AssertionId(\"valueAssertion_SigningFinancialStatements_PrtValueThnNoExistence3\")","Stamdata!F126"]
["KvK: Jaarverantwoording 2023 NLGAAP - micro rechtspersonen - publicatiestukken","valueAssertion_SigningFinancialStatements_PrtValueThnNoExistence3","`SignatureManagingSupervisoryDirectorsLocation` SHOULD NOT be reported, because the reported value of `DirectorSignedStatus` is equal to `Nee`. ","non-blocking","IF(Stamdata!G128 = \"Nee\",IF(Stamdata!G126=\"\",0,1),0)+AssertionId(\"valueAssertion_SigningFinancialStatements_PrtValueThnNoExistence3\")","Stamdata!G126"]
["KvK: Jaarverantwoording 2023 NLGAAP - micro rechtspersonen - publicatiestukken","valueAssertion_SigningFinancialStatements_PrtValueThnNoExistence3","`SignatureManagingSupervisoryDirectorsLocation` SHOULD NOT be reported, because the reported value of `DirectorSignedStatus` is equal to `Nee`. ","non-blocking","IF(Stamdata!H128 = \"Nee\",IF(Stamdata!H126=\"\",0,1),0)+AssertionId(\"valueAssertion_SigningFinancialStatements_PrtValueThnNoExistence3\")","Stamdata!H126"]
["KvK: Jaarverantwoording 2023 NLGAAP - micro rechtspersonen - publicatiestukken","existenceAssertion_SigningFinancialStatements_PrtExistence1","`DirectorSignedStatus` SHOULD exist at least once.","non-blocking","IF(NOT(Stamdata!D128=\"\"),0,1)+AssertionId(\"existenceAssertion_SigningFinancialStatements_PrtExistence1\")","Stamdata!D128"]
["KvK: Jaarverantwoording 2023 NLGAAP - micro rechtspersonen - publicatiestukken","existenceAssertion_SigningFinancialStatements_PrtExistence1","`DirectorSignedStatus` SHOULD exist at least once.","non-blocking","IF(NOT(Stamdata!E128=\"\"),0,1)+AssertionId(\"existenceAssertion_SigningFinancialStatements_PrtExistence1\")","Stamdata!E128"]
["KvK: Jaarverantwoording 2023 NLGAAP - micro rechtspersonen - publicatiestukken","existenceAssertion_SigningFinancialStatements_PrtExistence1","`DirectorSignedStatus` SHOULD exist at least once.","non-blocking","IF(NOT(Stamdata!F128=\"\"),0,1)+AssertionId(\"existenceAssertion_SigningFinancialStatements_PrtExistence1\")","Stamdata!F128"]
["KvK: Jaarverantwoording 2023 NLGAAP - micro rechtspersonen - publicatiestukken","existenceAssertion_SigningFinancialStatements_PrtExistence1","`DirectorSignedStatus` SHOULD exist at least once.","non-blocking","IF(NOT(Stamdata!G128=\"\"),0,1)+AssertionId(\"existenceAssertion_SigningFinancialStatements_PrtExistence1\")","Stamdata!G128"]
["KvK: Jaarverantwoording 2023 NLGAAP - micro rechtspersonen - publicatiestukken","existenceAssertion_SigningFinancialStatements_PrtExistence1","`DirectorSignedStatus` SHOULD exist at least once.","non-blocking","IF(NOT(Stamdata!H128=\"\"),0,1)+AssertionId(\"existenceAssertion_SigningFinancialStatements_PrtExistence1\")","Stamdata!H128"]

{"sheet":"XBRL Errors","index":4,"n_rows":1,"n_cols":2,"rows_kept":1,"cut":false,"hidden":false,"merged":[]}
["timestamp","Error"]